Workbook

Sheet DATA-->

Sheet Raw Data
A1: AVERAGE PRICE ($/kWh) BY STATE BY PROVIDER, 1990-2018
A2: YEAR | B2: STATE | C2: INDUSTRY SECTOR CATEGORY | D2: COMMERCIAL RATE | E2: INDUSTRIAL RATE
A3: 2018 | B3: Alaska (AK) | C3: Total Electric Industry | D3: =(18.58)/100 -> 0.1858 | E3: =(17.1)/100 -> 0.171
A4: 2018 | B4: Alabama (AL) | C4: Total Electric Industry | D4: =(11.24)/100 -> 0.1124 | E4: 0.0601
A5: 2018 | B5: Arkansas (AR) | C5: Total Electric Industry | D5: =(7.75)/100 -> 0.0775 | E5: 0.0564
A6: 2018 | B6: Arizona (AZ) | C6: Total Electric Industry | D6: =(10.64)/100 -> 0.1064 | E6: 0.0655
A7: 2018 | B7: California (CA) | C7: Total Electric Industry | D7: =(16.34)/100 -> 0.1634 | E7: 0.132
A8: 2018 | B8: Colorado (CO) | C8: Total Electric Industry | D8: 0.1002 | E8: 0.0747
A9: 2018 | B9: Connecticut (CT) | C9: Total Electric Industry | D9: 0.1676 | E9: 0.1377
A10: 2018 | B10: District of Columbia (DC) | C10: Total Electric Industry | D10: 0.1197 | E10: 0.083
A11: 2018 | B11: Delaware (DE) | C11: Total Electric Industry | D11: 0.0965 | E11: 0.0795
A12: 2018 | B12: Florida (FL) | C12: Total Electric Industry | D12: 0.0919 | E12: 0.0767
A13: 2018 | B13: Georgia (GA) | C13: Total Electric Industry | D13: 0.0979 | E13: 0.06
A14: 2018 | B14: Hawaii (HI) | C14: Total Electric Industry | D14: 0.299 | E14: 0.261
A15: 2018 | B15: Iowa (IA) | C15: Total Electric Industry | D15: 0.0968 | E15: 0.0645
A16: 2018 | B16: Idaho (ID) | C16: Total Electric Industry | D16: 0.0793 | E16: 0.0647
A17: 2018 | B17: Illinois (IL) | C17: Total Electric Industry | D17: 0.0912 | E17: 0.068
A18: 2018 | B18: Indiana (IN) | C18: Total Electric Industry | D18: 0.106 | E18: 0.0738
A19: 2018 | B19: Kansas (KS) | C19: Total Electric Industry | D19: 0.1066 | E19: 0.076
A20: 2018 | B20: Kentucky (KY) | C20: Total Electric Industry | D20: 0.0974 | E20: 0.0568
A21: 2018 | B21: Louisiana (LA) | C21: Total Electric Industry | D21: 0.0885 | E21: 0.0535
A22: 2018 | B22: Massachusetts (MA) | C22: Total Electric Industry | D22: 0.1717 | E22: 0.1489
A23: 2018 | B23: Maryland (MD) | C23: Total Electric Industry | D23: 0.1043 | E23: 0.0823
A24: 2018 | B24: Maine (ME) | C24: Total Electric Industry | D24: 0.1251 | E24: 0.0932
A25: 2018 | B25: Michigan (MI) | C25: Total Electric Industry | D25: 0.1115 | E25: 0.071
A26: 2018 | B26: Minnesota (MN) | C26: Total Electric Industry | D26: 0.1038 | E26: 0.0753
A27: 2018 | B27: Missouri (MO) | C27: Total Electric Industry | D27: 0.094 | E27: 0.0722
A28: 2018 | B28: Mississippi (MS) | C28: Total Electric Industry | D28: 0.1043 | E28: 0.06
A29: 2018 | B29: Montana (MT) | C29: Total Electric Industry | D29: 0.1011 | E29: 0.0519
A30: 2018 | B30: North Carolina (NC) | C30: Total Electric Industry | D30: 0.0858 | E30: 0.0633
A31: 2018 | B31: North Dakota (ND) | C31: Total Electric Industry | D31: 0.091 | E31: 0.0798
A32: 2018 | B32: Nebraska (NE) | C32: Total Electric Industry | D32: 0.0883 | E32: 0.076
A33: 2018 | B33: New Hampshire (NH) | C33: Total Electric Industry | D33: 0.1581 | E33: 0.1342
A34: 2018 | B34: New Jersey (NJ) | C34: Total Electric Industry | D34: 0.1221 | E34: 0.1007
A35: 2018 | B35: New Mexico (NM) | C35: Total Electric Industry | D35: 0.1002 | E35: 0.0584
A36: 2018 | B36: Nevada (NV) | C36: Total Electric Industry | D36: 0.0774 | E36: 0.061
A37: 2018 | B37: New York (NY) | C37: Total Electric Industry | D37: 0.145 | E37: 0.0602
A38: 2018 | B38: Ohio (OH) | C38: Total Electric Industry | D38: 0.1011 | E38: 0.0701
A39: 2018 | B39: Oklahoma (OK) | C39: Total Electric Industry | D39: 0.0807 | E39: 0.0534
A40: 2018 | B40: Oregon (OR) | C40: Total Electric Industry | D40: 0.0891 | E40: 0.0586
A41: 2018 | B41: Pennsylvania (PA) | C41: Total Electric Industry | D41: 0.0894 | E41: 0.0684
A42: 2018 | B42: Rhode Island (RI) | C42: Total Electric Industry | D42: 0.1658 | E42: 0.1539
A43: 2018 | B43: South Carolina (SC) | C43: Total Electric Industry | D43: 0.1011 | E43: 0.061
A44: 2018 | B44: South Dakota (SD) | C44: Total Electric Industry | D44: 0.0962 | E44: 0.0777
A45: 2018 | B45: Tennessee (TN) | C45: Total Electric Industry | D45: 0.1051 | E45: 0.0568
A46: 2018 | B46: Texas (TX) | C46: Total Electric Industry | D46: 0.0816 | E46: 0.0539
A47: 2018 | B47: Utah (UT) | C47: Total Electric Industry | D47: 0.0823 | E47: 0.059
A48: 2018 | B48: Virginia (VA) | C48: Total Electric Industry | D48: 0.0832 | E48: 0.0686
A49: 2018 | B49: Vermont (VT) | C49: Total Electric Industry | D49: 0.1524 | E49: 0.1066
A50: 2018 | B50: Washington (WA) | C50: Total Electric Industry | D50: 0.0872 | E50: 0.0472
A51: 2018 | B51: Wisconsin (WI) | C51: Total Electric Industry | D51: 0.1067 | E51: 0.0733
A52: 2018 | B52: West Virginia (WV) | C52: Total Electric Industry | D52: 0.0924 | E52: 0.064
A53: 2018 | B53: Wyoming (WY) | C53: Total Electric Industry | D53: 0.0958 | E53: 0.0671
A54: 2018 | B54: United States (US) | C54: Total Electric Industry | D54: 0.1067 | E54: 0.0692
A55: 2018 | B55: Alaska (AK) | C55: Full-Service Providers | D55: 0.1858 | E55: 0.171
A56: 2018 | B56: Alabama (AL) | C56: Full-Service Providers | D56: 0.1124 | E56: 0.0601
A57: 2018 | B57: Arkansas (AR) | C57: Full-Service Providers | D57: 0.0775 | E57: 0.0564
A58: 2018 | B58: Arizona (AZ) | C58: Full-Service Providers | D58: 0.1064 | E58: 0.0655
A59: 2018 | B59: California (CA) | C59: Full-Service Providers | D59: 0.1652 | E59: 0.1384
A60: 2018 | B60: Colorado (CO) | C60: Full-Service Providers | D60: 0.1002 | E60: 0.0747
A61: 2018 | B61: Connecticut (CT) | C61: Full-Service Providers | D61: 0.1658 | E61: 0.1149
A62: 2018 | B62: District of Columbia (DC) | C62: Full-Service Providers | D62: 0.1281 | E62: 0
A63: 2018 | B63: Delaware (DE) | C63: Full-Service Providers | D63: 0.1113 | E63: 0.0994
A64: 2018 | B64: Florida (FL) | C64: Full-Service Providers | D64: 0.0919 | E64: 0.0767
A65: 2018 | B65: Georgia (GA) | C65: Full-Service Providers | D65: 0.0979 | E65: 0.06
A66: 2018 | B66: Hawaii (HI) | C66: Full-Service Providers | D66: 0.299 | E66: 0.261
A67: 2018 | B67: Iowa (IA) | C67: Full-Service Providers | D67: 0.0968 | E67: 0.0645
A68: 2018 | B68: Idaho (ID) | C68: Full-Service Providers | D68: 0.0793 | E68: 0.0647
A69: 2018 | B69: Illinois (IL) | C69: Full-Service Providers | D69: 0.1032 | E69: 0.0741
A70: 2018 | B70: Indiana (IN) | C70: Full-Service Providers | D70: 0.106 | E70: 0.0738
A71: 2018 | B71: Kansas (KS) | C71: Full-Service Providers | D71: 0.1066 | E71: 0.076
A72: 2018 | B72: Kentucky (KY) | C72: Full-Service Providers | D72: 0.0974 | E72: 0.0568
A73: 2018 | B73: Louisiana (LA) | C73: Full-Service Providers | D73: 0.0885 | E73: 0.0535
A74: 2018 | B74: Massachusetts (MA) | C74: Full-Service Providers | D74: 0.174 | E74: 0.1366
A75: 2018 | B75: Maryland (MD) | C75: Full-Service Providers | D75: 0.1139 | E75: 0.0924
A76: 2018 | B76: Maine (ME) | C76: Full-Service Providers | D76: 0.1339 | E76: 0.1041
A77: 2018 | B77: Michigan (MI) | C77: Full-Service Providers | D77: 0.1154 | E77: 0.0735
A78: 2018 | B78: Minnesota (MN) | C78: Full-Service Providers | D78: 0.1038 | E78: 0.0753
A79: 2018 | B79: Missouri (MO) | C79: Full-Service Providers | D79: 0.094 | E79: 0.0722
A80: 2018 | B80: Mississippi (MS) | C80: Full-Service Providers | D80: 0.1043 | E80: 0.06
A81: 2018 | B81: Montana (MT) | C81: Full-Service Providers | D81: 0.1026 | E81: 0.0764
A82: 2018 | B82: North Carolina (NC) | C82: Full-Service Providers | D82: 0.0858 | E82: 0.0633
A83: 2018 | B83: North Dakota (ND) | C83: Full-Service Providers | D83: 0.091 | E83: 0.0798
A84: 2018 | B84: Nebraska (NE) | C84: Full-Service Providers | D84: 0.0883 | E84: 0.076
A85: 2018 | B85: New Hampshire (NH) | C85: Full-Service Providers | D85: 0.1638 | E85: 0.1329
A86: 2018 | B86: New Jersey (NJ) | C86: Full-Service Providers | D86: 0.1263 | E86: 0.0806
A87: 2018 | B87: New Mexico (NM) | C87: Full-Service Providers | D87: 0.1002 | E87: 0.0584
A88: 2018 | B88: Nevada (NV) | C88: Full-Service Providers | D88: 0.0883 | E88: 0.0658
A89: 2018 | B89: New York (NY) | C89: Full-Service Providers | D89: 0.1627 | E89: 0.059
A90: 2018 | B90: Ohio (OH) | C90: Full-Service Providers | D90: 0.1127 | E90: 0.0875
A91: 2018 | B91: Oklahoma (OK) | C91: Full-Service Providers | D91: 0.0807 | E91: 0.0534
A92: 2018 | B92: Oregon (OR) | C92: Full-Service Providers | D92: 0.0906 | E92: 0.0596
A93: 2018 | B93: Pennsylvania (PA) | C93: Full-Service Providers | D93: 0.1048 | E93: 0.0893
A94: 2018 | B94: Rhode Island (RI) | C94: Full-Service Providers | D94: 0.1789 | E94: 0.1704
A95: 2018 | B95: South Carolina (SC) | C95: Full-Service Providers | D95: 0.1011 | E95: 0.061
A96: 2018 | B96: South Dakota (SD) | C96: Full-Service Providers | D96: 0.0962 | E96: 0.0777
A97: 2018 | B97: Tennessee (TN) | C97: Full-Service Providers | D97: 0.1051 | E97: 0.0568
A98: 2018 | B98: Texas (TX) | C98: Full-Service Providers | D98: 0.0816 | E98: 0.0539
A99: 2018 | B99: Utah (UT) | C99: Full-Service Providers | D99: 0.0823 | E99: 0.059
A100: 2018 | B100: Virginia (VA) | C100: Full-Service Providers | D100: 0.0833 | E100: 0.0686
A101: 2018 | B101: Vermont (VT) | C101: Full-Service Providers | D101: 0.1524 | E101: 0.1066
A102: 2018 | B102: Washington (WA) | C102: Full-Service Providers | D102: 0.0872 | E102: 0.0483
A103: 2018 | B103: Wisconsin (WI) | C103: Full-Service Providers | D103: 0.1067 | E103: 0.0733
A104: 2018 | B104: West Virginia (WV) | C104: Full-Service Providers | D104: 0.0924 | E104: 0.064
A105: 2018 | B105: Wyoming (WY) | C105: Full-Service Providers | D105: 0.0958 | E105: 0.0671
A106: 2018 | B106: United States (US) | C106: Full-Service Providers | D106: 0.1039 | E106: 0.0681
A107: 2018 | B107: California (CA) | C107: Restructured Retail Service Providers | D107: 0.1574 | E107: 0.1136
A108: 2018 | B108: Connecticut (CT) | C108: Restructured Retail Service Providers | D108: 0.1683 | E108: 0.1466
A109: 2018 | B109: District of Columbia (DC) | C109: Restructured Retail Service Providers | D109: 0.1183 | E109: 0.083
A110: 2018 | B110: Delaware (DE) | C110: Restructured Retail Service Providers | D110: 0.0864 | E110: 0.0669
A111: 2018 | B111: Illinois (IL) | C111: Restructured Retail Service Providers | D111: 0.0856 | E111: 0.067
A112: 2018 | B112: Massachusetts (MA) | C112: Restructured Retail Service Providers | D112: 0.1709 | E112: 0.1564
A113: 2018 | B113: Maryland (MD) | C113: Restructured Retail Service Providers | D113: 0.1014 | E113: 0.0809
A114: 2018 | B114: Maine (ME) | C114: Restructured Retail Service Providers | D114: 0.1178 | E114: 0.0919
A115: 2018 | B115: Michigan (MI) | C115: Restructured Retail Service Providers | D115: 0.0765 | E115: 0.0581
A116: 2018 | B116: Montana (MT) | C116: Restructured Retail Service Providers | D116: 0.0504 | E116: 0.0365
A117: 2018 | B117: New Hampshire (NH) | C117: Restructured Retail Service Providers | D117: 0.1556 | E117: 0.1344
A118: 2018 | B118: New Jersey (NJ) | C118: Restructured Retail Service Providers | D118: 0.1199 | E118: 0.1068
A119: 2018 | B119: Nevada (NV) | C119: Restructured Retail Service Providers | D119: 0.0485 | E119: 0.0268
A120: 2018 | B120: New York (NY) | C120: Restructured Retail Service Providers | D120: 0.1359 | E120: 0.0604
A121: 2018 | B121: Ohio (OH) | C121: Restructured Retail Service Providers | D121: 0.0981 | E121: 0.0668
A122: 2018 | B122: Oregon (OR) | C122: Restructured Retail Service Providers | D122: 0.0648 | E122: 0.0516
A123: 2018 | B123: Pennsylvania (PA) | C123: Restructured Retail Service Providers | D123: 0.0846 | E123: 0.0674
A124: 2018 | B124: Rhode Island (RI) | C124: Restructured Retail Service Providers | D124: 0.1597 | E124: 0.1495
A125: 2018 | B125: Virginia (VA) | C125: Restructured Retail Service Providers | D125: 0.06 | E125: 0.0673
A126: 2018 | B126: Washington (WA) | C126: Restructured Retail Service Providers | D126: 0.0349 | E126: 0.0337
A127: 2018 | B127: United States (US) | C127: Restructured Retail Service Providers | D127: 0.1173 | E127: 0.0737
A128: 2018 | B128: California (CA) | C128: Energy-Only Providers | D128: 0.0631 | E128: 0.0559
A129: 2018 | B129: Connecticut (CT) | C129: Energy-Only Providers | D129: 0.0847 | E129: 0.0818
A130: 2018 | B130: District of Columbia (DC) | C130: Energy-Only Providers | D130: 0.07 | E130: 0.0672
A131: 2018 | B131: Delaware (DE) | C131: Energy-Only Providers | D131: 0.0638 | E131: 0.0592
A132: 2018 | B132: Illinois (IL) | C132: Energy-Only Providers | D132: 0.0583 | E132: 0.0526
A133: 2018 | B133: Massachusetts (MA) | C133: Energy-Only Providers | D133: 0.1022 | E133: 0.0968
A134: 2018 | B134: Maryland (MD) | C134: Energy-Only Providers | D134: 0.0669 | E134: 0.0609
A135: 2018 | B135: Maine (ME) | C135: Energy-Only Providers | D135: 0.0748 | E135: 0.0631
A136: 2018 | B136: Michigan (MI) | C136: Energy-Only Providers | D136: 0.0557 | E136: 0.0522
A137: 2018 | B137: Montana (MT) | C137: Energy-Only Providers | D137: 0.0264 | E137: 0.0316
A138: 2018 | B138: New Hampshire (NH) | C138: Energy-Only Providers | D138: 0.083 | E138: 0.0797
A139: 2018 | B139: New Jersey (NJ) | C139: Energy-Only Providers | D139: 0.0828 | E139: 0.0757
A140: 2018 | B140: Nevada (NV) | C140: Energy-Only Providers | D140: 0.0384 | E140: 0.0253
A141: 2018 | B141: New York (NY) | C141: Energy-Only Providers | D141: 0.0687 | E141: 0.0429
A142: 2018 | B142: Ohio (OH) | C142: Energy-Only Providers | D142: 0.0524 | E142: 0.049
A143: 2018 | B143: Oregon (OR) | C143: Energy-Only Providers | D143: 0.0347 | E143: 0.0347
A144: 2018 | B144: Pennsylvania (PA) | C144: Energy-Only Providers | D144: 0.0625 | E144: 0.0578
A145: 2018 | B145: Rhode Island (RI) | C145: Energy-Only Providers | D145: 0.0873 | E145: 0.0817
A146: 2018 | B146: Virginia (VA) | C146: Energy-Only Providers | D146: 0.0545 | E146: 0.0643
A147: 2018 | B147: Washington (WA) | C147: Energy-Only Providers | D147: 0.0279 | E147: 0.0269
A148: 2018 | B148: United States (US) | C148: Energy-Only Providers | D148: 0.0677 | E148: 0.0543
A149: 2018 | B149: California (CA) | C149: Delivery-Only Service | D149: 0.0943 | E149: 0.0576
A150: 2018 | B150: Connecticut (CT) | C150: Delivery-Only Service | D150: 0.0835 | E150: 0.0647
A151: 2018 | B151: District of Columbia (DC) | C151: Delivery-Only Service | D151: 0.0483 | E151: 0.0158
A152: 2018 | B152: Delaware (DE) | C152: Delivery-Only Service | D152: 0.0226 | E152: 0.0077
A153: 2018 | B153: Illinois (IL) | C153: Delivery-Only Service | D153: 0.0272 | E153: 0.0144
A154: 2018 | B154: Massachusetts (MA) | C154: Delivery-Only Service | D154: 0.0688 | E154: 0.0596
A155: 2018 | B155: Maryland (MD) | C155: Delivery-Only Service | D155: 0.0345 | E155: 0.02
A156: 2018 | B156: Maine (ME) | C156: Delivery-Only Service | D156: 0.043 | E156: 0.0288
A157: 2018 | B157: Michigan (MI) | C157: Delivery-Only Service | D157: 0.0209 | E157: 0.0059
A158: 2018 | B158: Montana (MT) | C158: Delivery-Only Service | D158: 0.024 | E158: 0.0049
A159: 2018 | B159: New Hampshire (NH) | C159: Delivery-Only Service | D159: 0.0725 | E159: 0.0547
A160: 2018 | B160: New Jersey (NJ) | C160: Delivery-Only Service | D160: 0.0372 | E160: 0.0311
A161: 2018 | B161: Nevada (NV) | C161: Delivery-Only Service | D161: 0.0101 | E161: 0.0016
A162: 2018 | B162: New York (NY) | C162: Delivery-Only Service | D162: 0.0671 | E162: 0.0175
A163: 2018 | B163: Ohio (OH) | C163: Delivery-Only Service | D163: 0.0457 | E163: 0.0179
A164: 2018 | B164: Oregon (OR) | C164: Delivery-Only Service | D164: 0.0301 | E164: 0.0168
A165: 2018 | B165: Pennsylvania (PA) | C165: Delivery-Only Service | D165: 0.0221 | E165: 0.0096
A166: 2018 | B166: Rhode Island (RI) | C166: Delivery-Only Service | D166: 0.0723 | E166: 0.0678
A167: 2018 | B167: Virginia (VA) | C167: Delivery-Only Service | D167: 0.0055 | E167: 0.003
A168: 2018 | B168: Washington (WA) | C168: Delivery-Only Service | D168: 0.007 | E168: 0.0068
A169: 2018 | B169: United States (US) | C169: Delivery-Only Service | D169: 0.0496 | E169: 0.0195
A170: 2017 | B170: Alaska (AK) | C170: Total Electric Industry | D170: 0.1889 | E170: 0.1634
A171: 2017 | B171: Alabama (AL) | C171: Total Electric Industry | D171: 0.116 | E171: 0.0616
A172: 2017 | B172: Arkansas (AR) | C172: Total Electric Industry | D172: 0.0851 | E172: 0.0607
A173: 2017 | B173: Arizona (AZ) | C173: Total Electric Industry | D173: 0.105 | E173: 0.0645
A174: 2017 | B174: California (CA) | C174: Total Electric Industry | D174: 0.1576 | E174: 0.1273
A175: 2017 | B175: Colorado (CO) | C175: Total Electric Industry | D175: 0.0989 | E175: 0.075
A176: 2017 | B176: Connecticut (CT) | C176: Total Electric Industry | D176: 0.1606 | E176: 0.131
A177: 2017 | B177: District of Columbia (DC) | C177: Total Electric Industry | D177: 0.1166 | E177: 0.0823
A178: 2017 | B178: Delaware (DE) | C178: Total Electric Industry | D178: 0.0989 | E178: 0.0778
A179: 2017 | B179: Florida (FL) | C179: Total Electric Industry | D179: 0.0935 | E179: 0.0783
A180: 2017 | B180: Georgia (GA) | C180: Total Electric Industry | D180: 0.1009 | E180: 0.0596
A181: 2017 | B181: Hawaii (HI) | C181: Total Electric Industry | D181: 0.2677 | E181: 0.2292
A182: 2017 | B182: Iowa (IA) | C182: Total Electric Industry | D182: 0.0946 | E182: 0.0621
A183: 2017 | B183: Idaho (ID) | C183: Total Electric Industry | D183: 0.0798 | E183: 0.0666
A184: 2017 | B184: Illinois (IL) | C184: Total Electric Industry | D184: 0.0909 | E184: 0.0647
A185: 2017 | B185: Indiana (IN) | C185: Total Electric Industry | D185: 0.1054 | E185: 0.0754
A186: 2017 | B186: Kansas (KS) | C186: Total Electric Industry | D186: 0.1059 | E186: 0.0754
A187: 2017 | B187: Kentucky (KY) | C187: Total Electric Industry | D187: 0.0985 | E187: 0.0572
A188: 2017 | B188: Louisiana (LA) | C188: Total Electric Industry | D188: 0.0895 | E188: 0.0548
A189: 2017 | B189: Massachusetts (MA) | C189: Total Electric Industry | D189: 0.1594 | E189: 0.1388
A190: 2017 | B190: Maryland (MD) | C190: Total Electric Industry | D190: 0.1075 | E190: 0.0837
A191: 2017 | B191: Maine (ME) | C191: Total Electric Industry | D191: 0.1212 | E191: 0.092
A192: 2017 | B192: Michigan (MI) | C192: Total Electric Industry | D192: 0.11 | E192: 0.0719
A193: 2017 | B193: Minnesota (MN) | C193: Total Electric Industry | D193: 0.1048 | E193: 0.0737
A194: 2017 | B194: Missouri (MO) | C194: Total Electric Industry | D194: 0.0947 | E194: 0.0733
A195: 2017 | B195: Mississippi (MS) | C195: Total Electric Industry | D195: 0.1017 | E195: 0.0599
A196: 2017 | B196: Montana (MT) | C196: Total Electric Industry | D196: 0.1012 | E196: 0.0525
A197: 2017 | B197: North Carolina (NC) | C197: Total Electric Industry | D197: 0.0844 | E197: 0.062
A198: 2017 | B198: North Dakota (ND) | C198: Total Electric Industry | D198: 0.0919 | E198: 0.0763
A199: 2017 | B199: Nebraska (NE) | C199: Total Electric Industry | D199: 0.0885 | E199: 0.0766
A200: 2017 | B200: New Hampshire (NH) | C200: Total Electric Industry | D200: 0.1481 | E200: 0.1234
... 4073 more rows

Sheet Commercial by State Data
B2: AVERAGE ANNUAL COMMERCIAL ELECTRICITY RATES BY STATE ($/kWh)
B3: Total Electric Industry Sector
E4: Midcontinent ISO (MISO) | G4: California ISO (CAISO) | I4: New England ISO (NEISO) | J4: Pennsylvania Jersey Maryland Power Pool (PJM) | N4: Midcontinent ISO (MISO) | P4: Midcontinent ISO (MISO) | Q4: Midcontinent ISO (MISO) | R4: Southwest Power Pool (SPP) | S4: Pennsylvania Jersey Maryland Power Pool (PJM) | T4: Midcontinent ISO (MISO) | U4: New England ISO (NEISO) | V4: Pennsylvania Jersey Maryland Power Pool (PJM) | W4: New England ISO (NEISO) | X4: Midcontinent ISO (MISO) | Y4: Midcontinent ISO (MISO) | AD4: Southwest Power Pool (SPP) | AE4: Southwest Power Pool (SPP) | AF4: New England ISO (NEISO) | AG4: Pennsylvania Jersey Maryland Power Pool (PJM) | AJ4: New York ISO (NYISO) | AK4: Pennsylvania Jersey Maryland Power Pool (PJM) | AL4: Southwest Power Pool (SPP) | AN4: Pennsylvania Jersey Maryland Power Pool (PJM) | AO4: New England ISO (NEISO) | AQ4: Southwest Power Pool (SPP) | AS4: Electric Reliability Council of Texas (ERCOT) | AU4: Pennsylvania Jersey Maryland Power Pool (PJM) | AV4: New England ISO (NEISO) | AX4: Midcontinent ISO (MISO) | AY4: Pennsylvania Jersey Maryland Power Pool (PJM)
C5: Alaska (AK) | D5: Alabama (AL) | E5: Arkansas (AR) | F5: Arizona (AZ) | G5: California (CA) | H5: Colorado (CO) | I5: Connecticut (CT) | J5: Delaware (DE) | K5: Florida (FL) | L5: Georgia (GA) | M5: Hawaii (HI) | N5: Iowa (IA) | O5: Idaho (ID) | P5: Illinois (IL) | Q5: Indiana (IN) | R5: Kansas (KS) | S5: Kentucky (KY) | T5: Louisiana (LA) | U5: Massachusetts (MA) | V5: Maryland (MD) | W5: Maine (ME) | X5: Michigan (MI) | Y5: Minnesota (MN) | Z5: Missouri (MO) | AA5: Mississippi (MS) | AB5: Montana (MT) | AC5: North Carolina (NC) | AD5: North Dakota (ND) | AE5: Nebraska (NE) | AF5: New Hampshire (NH) | AG5: New Jersey (NJ) | AH5: New Mexico (NM) | AI5: Nevada (NV) | AJ5: New York (NY) | AK5: Ohio (OH) | AL5: Oklahoma (OK) | AM5: Oregon (OR) | AN5: Pennsylvania (PA) | AO5: Rhode Island (RI) | AP5: South Carolina (SC) | AQ5: South Dakota (SD) | AR5: Tennessee (TN) | AS5: Texas (TX) | AT5: Utah (UT) | AU5: Virginia (VA) | AV5: Vermont (VT) | AW5: Washington (WA) | AX5: Wisconsin (WI) | AY5: West Virginia (WV) | AZ5: Wyoming (WY) | BA5: United States (US)
B6: 1999 | C6: =AVERAGEIFS(commercial,year,$B6,state,C$5,Industry_Sector,"Total Electric Industry") -> 0.092 | D6: 0.0654 | E6: 0.0582 | F6: 0.0751 | G6: 0.0944 | H6: 0.0561 | I6: 0.0969 | J6: 0.0739 | K6: 0.0622 | L6: 0.0667 | M6: =AVERAGEIFS(commercial,year,$B6,state,M$5,Industry_Sector,"Total Electric Industry") -> 0.1274 | N6: 0.0645 | O6: 0.042 | P6: 0.0738 | Q6: 0.0605 | R6: 0.0625 | S6: 0.0527 | T6: 0.0659 | U6: 0.0864 | V6: 0.0682 | W6: =AVERAGEIFS(commercial,year,$B6,state,W$5,Industry_Sector,"Total Electric Industry") -> 0.1051 | X6: 0.0785 | Y6: 0.0631 | Z6: 0.0596 | AA6: 0.0619 | AB6: 0.0635 | AC6: 0.0633 | AD6: 0.0619 | AE6: 0.0544 | AF6: 0.1118 | AG6: =AVERAGEIFS(commercial,year,$B6,state,AG$5,Industry_Sector,"Total Electric Industry") -> 0.0973 | AH6: 0.0752 | AI6: 0.0666 | AJ6: 0.1011 | AK6: 0.0767 | AL6: 0.0558 | AM6: 0.0494 | AN6: 0.0653 | AO6: 0.0773 | AP6: 0.063 | AQ6: =AVERAGEIFS(commercial,year,$B6,state,AQ$5,Industry_Sector,"Total Electric Industry") -> 0.067 | AR6: 0.0629 | AS6: 0.0652 | AT6: 0.0529 | AU6: 0.0555 | AV6: 0.1067 | AW6: 0.0486 | AX6: 0.0588 | AY6: 0.0553 | AZ6: 0.0528 | BA6: 0.0726
B7: 2000 | C7: =AVERAGEIFS(commercial,year,$B7,state,C$5,Industry_Sector,"Total Electric Industry") -> 0.0977 | D7: 0.0658 | E7: 0.0593 | F7: 0.0734 | G7: 0.1025 | H7: 0.0555 | I7: 0.0927 | J7: 0.0589 | K7: 0.0625 | L7: 0.065 | M7: =AVERAGEIFS(commercial,year,$B7,state,M$5,Industry_Sector,"Total Electric Industry") -> 0.1481 | N7: 0.0657 | O7: 0.0424 | P7: 0.0731 | Q7: 0.0593 | R7: 0.0625 | S7: 0.0514 | T7: 0.0718 | U7: 0.0913 | V7: 0.0655 | W7: =AVERAGEIFS(commercial,year,$B7,state,W$5,Industry_Sector,"Total Electric Industry") -> 0.1023 | X7: 0.079 | Y7: 0.0636 | Z7: 0.0583 | AA7: 0.0641 | AB7: 0.056 | AC7: 0.0636 | AD7: 0.0608 | AE7: 0.0542 | AF7: 0.1081 | AG7: =AVERAGEIFS(commercial,year,$B7,state,AG$5,Industry_Sector,"Total Electric Industry") -> 0.0914 | AH7: 0.0706 | AI7: 0.0674 | AJ7: 0.1265 | AK7: 0.0761 | AL7: 0.0614 | AM7: 0.0506 | AN7: 0.0771 | AO7: 0.095 | AP7: 0.0635 | AQ7: =AVERAGEIFS(commercial,year,$B7,state,AQ$5,Industry_Sector,"Total Electric Industry") -> 0.0664 | AR7: 0.0628 | AS7: 0.0688 | AT7: 0.0523 | AU7: 0.0565 | AV7: 0.1061 | AW7: 0.0486 | AX7: 0.0603 | AY7: 0.0546 | AZ7: 0.0529 | BA7: 0.0743
B8: 2001 | C8: 0.1029 | D8: 0.0653 | E8: 0.0619 | F8: 0.0737 | G8: 0.1215 | H8: 0.0567 | I8: 0.0926 | J8: 0.07 | K8: 0.0708 | L8: 0.0661 | M8: 0.1481 | N8: 0.0669 | O8: 0.0513 | P8: 0.074 | Q8: 0.0529 | R8: 0.062 | S8: 0.052 | T8: 0.0758 | U8: 0.1164 | V8: 0.0636 | W8: 0.1164 | X8: 0.0754 | Y8: 0.0603 | Z8: 0.0589 | AA8: 0.0694 | AB8: 0.0591 | AC8: 0.0642 | AD8: 0.0599 | AE8: 0.0548 | AF8: 0.1053 | AG8: 0.0909 | AH8: 0.075 | AI8: 0.0845 | AJ8: 0.1287 | AK8: 0.0846 | AL8: 0.0635 | AM8: 0.0545 | AN8: 0.0862 | AO8: 0.1154 | AP8: 0.0645 | AQ8: 0.0655 | AR8: 0.0631 | AS8: 0.0774 | AT8: 0.0558 | AU8: 0.0585 | AV8: 0.1128 | AW8: 0.0545 | AX8: 0.0634 | AY8: 0.0544 | AZ8: 0.0541 | BA8: 0.0792
B9: 2002 | C9: 0.1013 | D9: 0.0663 | E9: 0.0568 | F9: 0.0728 | G9: 0.1336 | H9: 0.0567 | I9: 0.0932 | J9: 0.0715 | K9: 0.0664 | L9: 0.0646 | M9: 0.1411 | N9: 0.0656 | O9: 0.0571 | P9: 0.0752 | Q9: 0.0598 | R9: 0.0628 | S9: 0.053 | T9: 0.0664 | U9: 0.1002 | V9: 0.0631 | W9: 0.1068 | X9: 0.0779 | Y9: 0.0588 | Z9: 0.0588 | AA9: 0.0683 | AB9: 0.0628 | AC9: 0.0651 | AD9: 0.0585 | AE9: 0.0562 | AF9: 0.1006 | AG9: 0.089 | AH9: 0.0722 | AI9: 0.0906 | AJ9: 0.1233 | AK9: 0.0781 | AL9: 0.0575 | AM9: 0.0659 | AN9: 0.085 | AO9: 0.0865 | AP9: 0.0648 | AQ9: 0.0624 | AR9: 0.0645 | AS9: 0.0695 | AT9: 0.056 | AU9: 0.0587 | AV9: 0.111 | AW9: 0.0611 | AX9: 0.0654 | AY9: 0.0541 | AZ9: 0.0571 | BA9: 0.0789
B10: 2003 | C10: 0.1049 | D10: 0.0685 | E10: 0.0554 | F10: 0.0709 | G10: 0.1248 | H10: 0.066 | I10: 0.0993 | J10: 0.0731 | K10: 0.0713 | L10: 0.0666 | M10: 0.1502 | N10: 0.0624 | O10: 0.0556 | P10: 0.073 | Q10: 0.0612 | R10: 0.0642 | S10: 0.0537 | T10: 0.0742 | U10: 0.1048 | V10: 0.0695 | W10: 0.1034 | X10: 0.0755 | Y10: 0.0612 | Z10: 0.0578 | AA10: 0.0725 | AB10: 0.0685 | AC10: 0.0665 | AD10: 0.0564 | AE10: 0.0581 | AF10: 0.103 | AG10: 0.0911 | AH10: 0.0736 | AI10: 0.0879 | AJ10: 0.1293 | AK10: 0.0755 | AL10: 0.0638 | AM10: 0.0638 | AN10: 0.0862 | AO10: 0.1009 | AP10: 0.0681 | AQ10: 0.0604 | AR10: 0.0668 | AS10: 0.0784 | AT10: 0.0559 | AU10: 0.0574 | AV10: 0.1129 | AW10: 0.0607 | AX10: 0.0697 | AY10: 0.0545 | AZ10: 0.0574 | BA10: 0.0803
B11: 2004 | C11: 0.1099 | D11: 0.0712 | E11: 0.0564 | F11: 0.0728 | G11: 0.1164 | H11: 0.0689 | I11: 0.099 | J11: 0.0744 | K11: 0.0761 | L11: 0.0688 | M11: 0.1619 | N11: 0.0675 | O11: 0.0537 | P11: 0.0754 | Q11: 0.0631 | R11: 0.0645 | S11: 0.056 | T11: 0.0758 | U11: 0.1099 | V11: 0.0756 | W11: 0.0989 | X11: 0.0757 | Y11: 0.0631 | Z11: 0.058 | AA11: 0.0799 | AB11: 0.0742 | AC11: 0.067 | AD11: 0.0586 | AE11: 0.0584 | AF11: 0.1099 | AG11: 0.0996 | AH11: 0.0739 | AI11: 0.0908 | AJ11: 0.1298 | AK11: 0.0775 | AL11: 0.0655 | AM11: 0.0645 | AN11: 0.0851 | AO11: 0.1053 | AP11: 0.0691 | AQ11: 0.0618 | AR11: 0.0705 | AS11: 0.079 | AT11: 0.059 | AU11: 0.0588 | AV11: 0.1142 | AW11: 0.0617 | AX11: 0.0724 | AY11: 0.0546 | AZ11: 0.0598 | BA11: 0.0817
B12: 2005 | C12: 0.1156 | D12: 0.075 | E12: 0.0618 | F12: 0.074 | G12: 0.1192 | H12: 0.0762 | I12: 0.1153 | J12: 0.076 | K12: 0.0816 | L12: 0.0767 | M12: 0.1904 | N12: 0.0695 | O12: 0.0542 | P12: 0.0775 | Q12: 0.0657 | R12: 0.066 | S12: 0.0601 | T12: 0.0856 | U12: 0.1242 | V12: 0.0897 | W12: 0.1063 | X12: 0.0784 | Y12: 0.0659 | Z12: 0.0592 | AA12: 0.0848 | AB12: 0.0743 | AC12: 0.0686 | AD12: 0.0611 | AE12: 0.0598 | AF12: 0.1206 | AG12: 0.1061 | AH12: 0.0781 | AI12: 0.0948 | AJ12: 0.1436 | AK12: 0.0793 | AL12: 0.07 | AM12: 0.0651 | AN12: 0.085 | AO12: 0.1171 | AP12: 0.0739 | AQ12: 0.062 | AR12: 0.0717 | AS12: 0.0885 | AT12: 0.0607 | AU12: 0.0605 | AV12: 0.1133 | AW12: 0.0633 | AX12: 0.0767 | AY12: 0.0553 | AZ12: 0.0617 | BA12: 0.0867
B13: 2006 | C13: 0.1193 | D13: 0.0818 | E13: 0.0696 | F13: 0.0802 | G13: 0.129 | H13: 0.075 | I13: 0.1403 | J13: 0.1021 | K13: 0.0991 | L13: 0.0781 | M13: 0.2142 | N13: 0.0729 | O13: 0.0516 | P13: 0.0795 | Q13: 0.0721 | R13: 0.0696 | S13: 0.0644 | T13: 0.0903 | U13: 0.1554 | V13: 0.1056 | W13: 0.1242 | X13: 0.0851 | Y13: 0.0702 | Z13: 0.0608 | AA13: 0.0937 | AB13: 0.0744 | AC13: 0.0717 | AD13: 0.063 | AE13: 0.0619 | AF13: 0.1407 | AG13: 0.1162 | AH13: 0.0761 | AI13: 0.1012 | AJ13: 0.1551 | AK13: 0.0844 | AL13: 0.0734 | AM13: 0.0677 | AN13: 0.0894 | AO13: 0.1351 | AP13: 0.076 | AQ13: 0.0647 | AR13: 0.08 | AS13: 0.0985 | AT13: 0.0615 | AU13: 0.0621 | AV13: 0.1167 | AW13: 0.0663 | AX13: 0.0837 | AY13: 0.0559 | AZ13: 0.0628 | BA13: 0.0946
B14: 2007 | C14: 0.1219 | D14: 0.087 | E14: 0.0691 | F14: 0.0827 | G14: 0.1282 | H14: 0.0762 | I14: 0.1539 | J14: 0.1121 | K14: 0.0975 | L14: 0.0807 | M14: 0.2191 | N14: 0.0711 | O14: 0.0514 | P14: 0.0857 | Q14: 0.0729 | R14: 0.0683 | S14: 0.0676 | T14: 0.0913 | U14: 0.152 | V14: 0.1158 | W14: 0.1294 | X14: 0.0877 | Y14: 0.0748 | Z14: 0.0634 | AA14: 0.0892 | AB14: 0.081 | AC14: 0.0743 | AD14: 0.0658 | AE14: 0.0639 | AF14: 0.1391 | AG14: 0.1299 | AH14: 0.0766 | AI14: 0.1009 | AJ14: 0.1592 | AK14: 0.0867 | AL14: 0.0733 | AM14: 0.072 | AN14: 0.092 | AO14: 0.1267 | AP14: 0.0774 | AQ14: 0.0661 | AR14: 0.0809 | AS14: 0.0987 | AT14: 0.0654 | AU14: 0.0638 | AV14: 0.1229 | AW14: 0.0655 | AX14: 0.0871 | AY14: 0.0585 | AZ14: 0.0625 | BA14: 0.0965
B15: 2008 | C15: 0.1364 | D15: 0.0987 | E15: 0.0761 | F15: 0.0893 | G15: 0.1254 | H15: 0.0857 | I15: 0.1712 | J15: 0.121 | K15: 0.1014 | L15: 0.0907 | M15: 0.2972 | N15: 0.0718 | O15: 0.0572 | P15: 0.0925 | Q15: 0.0782 | R15: 0.0744 | S15: 0.0729 | T15: 0.1012 | U15: 0.1607 | V15: 0.1277 | W15: 0.1295 | X15: 0.0917 | Y15: 0.0788 | Z15: 0.0661 | AA15: 0.1002 | AB15: 0.0854 | AC15: 0.0755 | AD15: 0.0681 | AE15: 0.0668 | AF15: 0.143 | AG15: 0.1403 | AH15: 0.0867 | AI15: 0.1007 | AJ15: 0.1679 | AK15: 0.0923 | AL15: 0.0788 | AM15: 0.0729 | AN15: 0.0939 | AO15: 0.154 | AP15: 0.0842 | AQ15: 0.0697 | AR15: 0.0924 | AS15: 0.1075 | AT15: 0.0666 | AU15: 0.0732 | AV15: 0.1249 | AW15: 0.0677 | AX15: 0.0928 | AY15: 0.0608 | AZ15: 0.0671 | BA15: 0.1026
B16: 2009 | C16: 0.1446 | D16: 0.1005 | E16: 0.0756 | F16: 0.0935 | G16: 0.1327 | H16: 0.0815 | I16: 0.1687 | J16: 0.1203 | K16: 0.1077 | L16: 0.0894 | M16: 0.2186 | N16: 0.0755 | O16: 0.0649 | P16: 0.0905 | Q16: 0.0832 | R16: 0.0787 | S16: 0.0763 | T16: 0.0769 | U16: 0.1537 | V16: 0.1198 | W16: 0.126 | X16: 0.0924 | Y16: 0.0792 | Z16: 0.0696 | AA16: 0.095 | AB16: 0.0832 | AC16: 0.0798 | AD16: 0.0681 | AE16: 0.0733 | AF16: 0.1436 | AG16: 0.1384 | AH16: 0.084 | AI16: 0.1064 | AJ16: 0.1548 | AK16: 0.0965 | AL16: 0.0676 | AM16: 0.075 | AN16: 0.0955 | AO16: 0.1366 | AP16: 0.0874 | AQ16: 0.0714 | AR16: 0.0961 | AS16: 0.0966 | AT16: 0.0696 | AU16: 0.0806 | AV16: 0.1293 | AW16: 0.0697 | AX16: 0.0957 | AY16: 0.0677 | AZ16: 0.0728 | BA16: 0.1016
B17: 2010 | C17: =AVERAGEIFS(commercial,year,$B17,state,C$5,Industry_Sector,"Total Electric Industry") -> 0.1395 | D17: 0.1018 | E17: 0.0731 | F17: 0.0947 | G17: 0.1309 | H17: 0.0913 | I17: 0.1645 | J17: 0.1136 | K17: 0.0976 | L17: 0.0906 | M17: =AVERAGEIFS(commercial,year,$B17,state,M$5,Industry_Sector,"Total Electric Industry") -> 0.2593 | N17: 0.0791 | O17: 0.0664 | P17: 0.0888 | Q17: 0.0838 | R17: 0.0825 | S17: 0.0788 | T17: 0.085 | U17: 0.1453 | V17: 0.1175 | W17: =AVERAGEIFS(commercial,year,$B17,state,W$5,Industry_Sector,"Total Electric Industry") -> 0.1252 | X17: 0.0981 | Y17: 0.0838 | Z17: 0.075 | AA17: 0.0932 | AB17: 0.0855 | AC17: 0.0816 | AD17: 0.0721 | AE17: 0.0764 | AF17: 0.1425 | AG17: =AVERAGEIFS(commercial,year,$B17,state,AG$5,Industry_Sector,"Total Electric Industry") -> 0.1389 | AH17: 0.0857 | AI17: 0.0979 | AJ17: 0.1631 | AK17: 0.0973 | AL17: 0.0745 | AM17: 0.0759 | AN17: 0.101 | AO17: 0.131 | AP17: 0.089 | AQ17: =AVERAGEIFS(commercial,year,$B17,state,AQ$5,Industry_Sector,"Total Electric Industry") -> 0.0755 | AR17: 0.0966 | AS17: 0.0919 | AT17: 0.0715 | AU17: 0.0765 | AV17: 0.1344 | AW17: 0.0737 | AX17: 0.0998 | AY17: 0.0766 | AZ17: 0.0742 | BA17: 0.1019
B18: 2011 | C18: 0.151 | D18: 0.1047 | E18: 0.075 | F18: 0.095 | G18: 0.1305 | H18: 0.0944 | I18: 0.1557 | J18: 0.1064 | K18: 0.0985 | L18: 0.0987 | M18: 0.3237 | N18: 0.0785 | O18: 0.0641 | P18: 0.0864 | Q18: 0.0877 | R18: 0.0878 | S18: 0.0849 | T18: 0.0844 | U18: 0.1433 | V18: 0.1128 | W18: 0.1229 | X18: 0.1033 | Y18: 0.0863 | Z18: 0.0804 | AA18: 0.0948 | AB18: 0.0912 | AC18: 0.0813 | AD18: 0.0761 | AE18: 0.0799 | AF18: 0.1404 | AG18: 0.1347 | AH18: 0.0907 | AI18: 0.0905 | AJ18: 0.1581 | AK18: 0.0963 | AL18: 0.076 | AM18: 0.0815 | AN18: 0.1003 | AO18: 0.1237 | AP18: 0.093 | AQ18: 0.0776 | AR18: 0.1027 | AS18: 0.0883 | AT18: 0.0735 | AU18: 0.0795 | AV18: 0.14 | AW18: 0.0749 | AX18: 0.1042 | AY18: 0.0814 | AZ18: 0.0772 | BA18: 0.1024
B19: 2012 | C19: 0.1493 | D19: 0.1063 | E19: 0.0771 | F19: 0.0953 | G19: 0.1341 | H19: 0.0939 | I19: 0.1465 | J19: 0.1013 | K19: 0.0966 | L19: 0.0958 | M19: 0.3488 | N19: 0.0801 | O19: 0.0686 | P19: 0.0799 | Q19: 0.0914 | R19: 0.0924 | S19: 0.0873 | T19: 0.0775 | U19: 0.1384 | V19: 0.1043 | W19: 0.1153 | X19: 0.1093 | Y19: 0.0884 | Z19: 0.082 | AA19: 0.0933 | AB19: 0.0913 | AC19: 0.0866 | AD19: 0.0802 | AE19: 0.0838 | AF19: 0.1336 | AG19: 0.1278 | AH19: 0.0932 | AI19: 0.0883 | AJ19: 0.1506 | AK19: 0.0947 | AL19: 0.0732 | AM19: 0.0831 | AN19: 0.0944 | AO19: 0.1187 | AP19: 0.0963 | AQ19: 0.081 | AR19: 0.1031 | AS19: 0.0816 | AT19: 0.0806 | AU19: 0.0808 | AV19: 0.1432 | AW19: 0.0768 | AX19: 0.1051 | AY19: 0.0842 | AZ19: 0.0824 | BA19: 0.1009
B20: 2013 | C20: 0.1558 | D20: 0.1051 | E20: 0.0805 | F20: 0.0985 | G20: 0.142 | H20: 0.0986 | I20: 0.1463 | J20: 0.102 | K20: 0.0939 | L20: 0.0999 | M20: 0.3405 | N20: 0.0844 | O20: 0.0737 | P20: 0.0814 | Q20: 0.096 | R20: 0.0968 | S20: 0.0856 | T20: 0.0896 | U20: 0.1423 | V20: 0.1068 | W20: 0.1174 | X20: 0.1106 | Y20: 0.0942 | Z20: 0.088 | AA20: 0.101 | AB20: 0.0954 | AC20: 0.0876 | AD20: 0.0839 | AE20: 0.086 | AF20: 0.1352 | AG20: 0.1277 | AH20: 0.0974 | AI20: 0.0901 | AJ20: 0.1535 | AK20: 0.0935 | AL20: 0.0777 | AM20: 0.0868 | AN20: 0.0925 | AO20: 0.1292 | AP20: 0.0988 | AQ20: 0.0851 | AR20: 0.1 | AS20: 0.0802 | AT20: 0.0832 | AU20: 0.08 | AV20: 0.1466 | AW20: 0.0778 | AX20: 0.1075 | AY20: 0.0817 | AZ20: 0.0857 | BA20: 0.1026
B21: 2014 | C21: 0.1709 | D21: 0.1079 | E21: 0.0805 | F21: 0.1013 | G21: 0.1562 | H21: 0.1008 | I21: 0.1555 | J21: 0.105 | K21: 0.0987 | L21: 0.1036 | M21: 0.3421 | N21: 0.0867 | O21: 0.0778 | P21: 0.0926 | Q21: 0.0996 | R21: 0.1013 | S21: 0.0944 | T21: 0.091 | U21: 0.1468 | V21: 0.1115 | W21: 0.127 | X21: 0.1087 | Y21: 0.0985 | Z21: 0.089 | AA21: 0.1076 | AB21: 0.0964 | AC21: 0.0875 | AD21: 0.0879 | AE21: 0.0873 | AF21: 0.1434 | AG21: 0.1315 | AH21: 0.1027 | AI21: 0.0947 | AJ21: 0.1612 | AK21: 0.0983 | AL21: 0.0809 | AM21: 0.0875 | AN21: 0.0973 | AO21: 0.1456 | AP21: 0.1028 | AQ21: 0.0889 | AR21: 0.1038 | AS21: 0.0816 | AT21: 0.0853 | AU21: 0.0815 | AV21: 0.1456 | AW21: 0.0797 | AX21: 0.1077 | AY21: 0.0799 | AZ21: 0.0888 | BA21: 0.1074
B22: 2015 | C22: 0.1744 | D22: 0.1083 | E22: 0.0832 | F22: 0.1039 | G22: 0.1573 | H22: 0.0988 | I22: 0.1597 | J22: 0.1025 | K22: 0.095 | L22: 0.0989 | M22: 0.2693 | N22: 0.0892 | O22: 0.078 | P22: 0.0902 | Q22: 0.0978 | R22: 0.101 | S22: 0.0944 | T22: 0.0866 | U22: 0.1579 | V22: 0.11 | W22: 0.1247 | X22: 0.1055 | Y22: 0.0944 | Z22: 0.0916 | AA22: 0.1055 | AB22: 0.1023 | AC22: 0.0873 | AD22: 0.0883 | AE22: 0.0867 | AF22: 0.1496 | AG22: 0.1279 | AH22: 0.103 | AI22: 0.0925 | AJ22: 0.1531 | AK22: 0.1007 | AL22: 0.0768 | AM22: 0.088 | AN22: 0.096 | AO22: 0.1578 | AP22: 0.1021 | AQ22: 0.0916 | AR22: 0.1016 | AS22: 0.0815 | AT22: 0.0862 | AU22: 0.0821 | AV22: 0.1454 | AW22: 0.0822 | AX22: 0.1089 | AY22: 0.0861 | AZ22: 0.0912 | BA22: 0.1064
B23: 2016 | C23: 0.1756 | D23: 0.1111 | E23: 0.0823 | F23: 0.1041 | G23: 0.1507 | H23: 0.096 | I23: 0.1575 | J23: 0.1007 | K23: 0.089 | L23: 0.0981 | M23: 0.2464 | N23: 0.0917 | O23: 0.0776 | P23: 0.0902 | Q23: 0.1001 | R23: 0.1047 | S23: 0.0957 | T23: 0.0859 | U23: 0.156 | V23: 0.1099 | W23: 0.1208 | X23: 0.1064 | Y23: 0.0986 | Z23: 0.0926 | AA23: 0.0957 | AB23: 0.1019 | AC23: 0.0862 | AD23: 0.0915 | AE23: 0.088 | AF23: 0.1443 | AG23: 0.1226 | AH23: 0.0975 | AI23: 0.0793 | AJ23: 0.1445 | AK23: 0.0997 | AL23: 0.0766 | AM23: 0.0891 | AN23: 0.0922 | AO23: 0.1488 | AP23: 0.1028 | AQ23: 0.0958 | AR23: 0.1019 | AS23: 0.0826 | AT23: 0.0875 | AU23: 0.0793 | AV23: 0.1454 | AW23: 0.0843 | AX23: 0.1077 | AY23: 0.0935 | AZ23: 0.094 | BA23: 0.1043
B24: 2017 | C24: 0.1889 | D24: 0.116 | E24: 0.0851 | F24: 0.105 | G24: 0.1576 | H24: 0.0989 | I24: 0.1606 | J24: 0.0989 | K24: 0.0935 | L24: 0.1009 | M24: 0.2677 | N24: 0.0946 | O24: 0.0798 | P24: 0.0909 | Q24: 0.1054 | R24: 0.1059 | S24: 0.0985 | T24: 0.0895 | U24: 0.1594 | V24: 0.1075 | W24: 0.1212 | X24: 0.11 | Y24: 0.1048 | Z24: 0.0947 | AA24: 0.1017 | AB24: 0.1012 | AC24: 0.0844 | AD24: 0.0919 | AE24: 0.0885 | AF24: 0.1481 | AG24: 0.1228 | AH24: 0.1019 | AI24: 0.0796 | AJ24: 0.1475 | AK24: 0.1005 | AL24: 0.0811 | AM24: 0.0886 | AN24: 0.0898 | AO24: 0.152 | AP24: 0.1057 | AQ24: 0.0974 | AR24: 0.1055 | AS24: 0.0826 | AT24: 0.0865 | AU24: 0.0801 | AV24: 0.1461 | AW24: 0.0857 | AX24: 0.1087 | AY24: 0.0958 | AZ24: 0.097 | BA24: 0.1066
B25: 2018 | C25: 0.1858 | D25: 0.1124 | E25: 0.0775 | F25: 0.1064 | G25: 0.1634 | H25: 0.1002 | I25: 0.1676 | J25: 0.0965 | K25: 0.0919 | L25: 0.0979 | M25: 0.299 | N25: 0.0968 | O25: 0.0793 | P25: 0.0912 | Q25: 0.106 | R25: 0.1066 | S25: 0.0974 | T25: 0.0885 | U25: 0.1717 | V25: 0.1043 | W25: 0.1251 | X25: 0.1115 | Y25: 0.1038 | Z25: 0.094 | AA25: 0.1043 | AB25: 0.1011 | AC25: 0.0858 | AD25: 0.091 | AE25: 0.0883 | AF25: 0.1581 | AG25: 0.1221 | AH25: 0.1002 | AI25: 0.0774 | AJ25: 0.145 | AK25: 0.1011 | AL25: 0.0807 | AM25: 0.0891 | AN25: 0.0894 | AO25: 0.1658 | AP25: 0.1011 | AQ25: 0.0962 | AR25: 0.1051 | AS25: 0.0816 | AT25: 0.0823 | AU25: 0.0832 | AV25: 0.1524 | AW25: 0.0872 | AX25: 0.1067 | AY25: 0.0924 | AZ25: 0.0958 | BA25: 0.1067

Sheet Industrial by State Data
B2: AVERAGE ANNUAL INDUSTRIAL ELECTRICITY RATES BY STATE ($/kWh)
B3: Total Electric Industry Sector
E4: Midcontinent ISO (MISO) | G4: California ISO (CAISO) | I4: New England ISO (NEISO) | J4: Pennsylvania Jersey Maryland Power Pool (PJM) | N4: Midcontinent ISO (MISO) | P4: Midcontinent ISO (MISO) | Q4: Midcontinent ISO (MISO) | R4: Southwest Power Pool (SPP) | S4: Pennsylvania Jersey Maryland Power Pool (PJM) | T4: Midcontinent ISO (MISO) | U4: New England ISO (NEISO) | V4: Pennsylvania Jersey Maryland Power Pool (PJM) | W4: New England ISO (NEISO) | X4: Midcontinent ISO (MISO) | Y4: Midcontinent ISO (MISO) | AD4: Southwest Power Pool (SPP) | AE4: Southwest Power Pool (SPP) | AF4: New England ISO (NEISO) | AG4: Pennsylvania Jersey Maryland Power Pool (PJM) | AJ4: New York ISO (NYISO) | AK4: Pennsylvania Jersey Maryland Power Pool (PJM) | AL4: Southwest Power Pool (SPP) | AN4: Pennsylvania Jersey Maryland Power Pool (PJM) | AO4: New England ISO (NEISO) | AQ4: Southwest Power Pool (SPP) | AS4: Electric Reliability Council of Texas (ERCOT) | AU4: Pennsylvania Jersey Maryland Power Pool (PJM) | AV4: New England ISO (NEISO) | AX4: Midcontinent ISO (MISO) | AY4: Pennsylvania Jersey Maryland Power Pool (PJM)
C5: Alaska (AK) | D5: Alabama (AL) | E5: Arkansas (AR) | F5: Arizona (AZ) | G5: California (CA) | H5: Colorado (CO) | I5: Connecticut (CT) | J5: Delaware (DE) | K5: Florida (FL) | L5: Georgia (GA) | M5: Hawaii (HI) | N5: Iowa (IA) | O5: Idaho (ID) | P5: Illinois (IL) | Q5: Indiana (IN) | R5: Kansas (KS) | S5: Kentucky (KY) | T5: Louisiana (LA) | U5: Massachusetts (MA) | V5: Maryland (MD) | W5: Maine (ME) | X5: Michigan (MI) | Y5: Minnesota (MN) | Z5: Missouri (MO) | AA5: Mississippi (MS) | AB5: Montana (MT) | AC5: North Carolina (NC) | AD5: North Dakota (ND) | AE5: Nebraska (NE) | AF5: New Hampshire (NH) | AG5: New Jersey (NJ) | AH5: New Mexico (NM) | AI5: Nevada (NV) | AJ5: New York (NY) | AK5: Ohio (OH) | AL5: Oklahoma (OK) | AM5: Oregon (OR) | AN5: Pennsylvania (PA) | AO5: Rhode Island (RI) | AP5: South Carolina (SC) | AQ5: South Dakota (SD) | AR5: Tennessee (TN) | AS5: Texas (TX) | AT5: Utah (UT) | AU5: Virginia (VA) | AV5: Vermont (VT) | AW5: Washington (WA) | AX5: Wisconsin (WI) | AY5: West Virginia (WV) | AZ5: Wyoming (WY) | BA5: United States (US)
B6: 1999 | C6: =AVERAGEIFS(industrial,year,$B6,state,C$5,Industry_Sector,"Total Electric Industry") -> 0.0732 | D6: 0.0382 | E6: 0.0412 | F6: 0.0504 | G6: 0.0627 | H6: 0.0438 | I6: 0.0742 | J6: 0.0471 | K6: 0.0477 | L6: 0.0415 | M6: =AVERAGEIFS(industrial,year,$B6,state,M$5,Industry_Sector,"Total Electric Industry") -> 0.097 | N6: 0.0389 | O6: 0.0263 | P6: 0.0499 | Q6: 0.0389 | R6: 0.0447 | S6: 0.0299 | T6: 0.0425 | U6: 0.0753 | V6: 0.0426 | W6: =AVERAGEIFS(industrial,year,$B6,state,W$5,Industry_Sector,"Total Electric Industry") -> 0.0642 | X6: 0.0503 | Y6: 0.0456 | Z6: 0.0438 | AA6: 0.0402 | AB6: 0.0274 | AC6: 0.0457 | AD6: 0.0404 | AE6: 0.0357 | AF6: 0.0919 | AG6: =AVERAGEIFS(industrial,year,$B6,state,AG$5,Industry_Sector,"Total Electric Industry") -> 0.0767 | AH6: 0.0424 | AI6: 0.0477 | AJ6: 0.0474 | AK6: 0.0433 | AL6: 0.036 | AM6: 0.0348 | AN6: 0.0471 | AO6: 0.0731 | AP6: 0.0372 | AQ6: =AVERAGEIFS(industrial,year,$B6,state,AQ$5,Industry_Sector,"Total Electric Industry") -> 0.0455 | AR6: 0.0419 | AS6: 0.0397 | AT6: 0.0336 | AU6: 0.0384 | AV6: 0.0735 | AW6: 0.0265 | AX6: 0.0389 | AY6: 0.038 | AZ6: 0.0334 | BA6: 0.0443
B7: 2000 | C7: =AVERAGEIFS(industrial,year,$B7,state,C$5,Industry_Sector,"Total Electric Industry") -> 0.0756 | D7: 0.0387 | E7: 0.042 | F7: 0.0527 | G7: 0.0714 | H7: 0.0425 | I7: 0.0732 | J7: 0.0373 | K7: 0.0484 | L7: 0.041 | M7: =AVERAGEIFS(industrial,year,$B7,state,M$5,Industry_Sector,"Total Electric Industry") -> 0.1169 | N7: 0.0389 | O7: 0.0311 | P7: 0.0499 | Q7: 0.0381 | R7: 0.0455 | S7: 0.0301 | T7: 0.05 | U7: 0.082 | V7: 0.0414 | W7: =AVERAGEIFS(industrial,year,$B7,state,W$5,Industry_Sector,"Total Electric Industry") -> 0.0689 | X7: 0.0509 | Y7: 0.0457 | Z7: 0.0443 | AA7: 0.0414 | AB7: 0.0397 | AC7: 0.0458 | AD7: 0.0398 | AE7: 0.0361 | AF7: 0.0917 | AG7: =AVERAGEIFS(industrial,year,$B7,state,AG$5,Industry_Sector,"Total Electric Industry") -> 0.0858 | AH7: 0.0469 | AI7: 0.0498 | AJ7: 0.0537 | AK7: 0.0437 | AL7: 0.0409 | AM7: 0.0356 | AN7: 0.0563 | AO7: 0.0876 | AP7: 0.0374 | AQ7: =AVERAGEIFS(industrial,year,$B7,state,AQ$5,Industry_Sector,"Total Electric Industry") -> 0.0449 | AR7: 0.0409 | AS7: 0.0442 | AT7: 0.0335 | AU7: 0.039 | AV7: 0.0731 | AW7: 0.033 | AX7: 0.0404 | AY7: 0.0376 | AZ7: 0.0336 | BA7: 0.0464
B8: 2001 | C8: 0.0761 | D8: 0.0379 | E8: 0.0443 | F8: 0.0524 | G8: 0.0923 | H8: 0.0448 | I8: 0.0762 | J8: 0.0481 | K8: 0.0518 | L8: 0.0428 | M8: 0.1168 | N8: 0.0418 | O8: 0.0371 | P8: 0.0465 | Q8: 0.0411 | R8: 0.0455 | S8: 0.0304 | T8: 0.0558 | U8: 0.0937 | V8: 0.0437 | W8: 0.0715 | X8: 0.0508 | Y8: 0.0434 | Z8: 0.0439 | AA8: 0.044 | AB8: 0.0659 | AC8: 0.0461 | AD8: 0.0398 | AE8: 0.0376 | AF8: 0.0911 | AG8: 0.0833 | AH8: 0.0545 | AI8: 0.0656 | AJ8: 0.0556 | AK8: 0.0427 | AL8: 0.0429 | AM8: 0.0421 | AN8: 0.0576 | AO8: 0.0936 | AP8: 0.0386 | AQ8: 0.0446 | AR8: 0.0405 | AS8: 0.0527 | AT8: 0.0353 | AU8: 0.0416 | AV8: 0.0789 | AW8: 0.0475 | AX8: 0.0436 | AY8: 0.0374 | AZ8: 0.0343 | BA8: 0.0505
B9: 2002 | C9: 0.0765 | D9: 0.0382 | E9: 0.0401 | F9: 0.052 | G9: 0.0981 | H9: 0.0452 | I9: 0.0768 | J9: 0.0485 | K9: 0.0523 | L9: 0.0395 | M9: 0.1102 | N9: 0.0406 | O9: 0.0434 | P9: 0.0489 | Q9: 0.0395 | R9: 0.0453 | S9: 0.0309 | T9: 0.0442 | U9: 0.0834 | V9: 0.0401 | W9: 0.0705 | X9: 0.0502 | Y9: 0.0407 | Z9: 0.0442 | AA9: 0.044 | AB9: 0.0371 | AC9: 0.047 | AD9: 0.0398 | AE9: 0.0389 | AF9: 0.0909 | AG9: 0.0772 | AH9: 0.0448 | AI9: 0.0725 | AJ9: 0.0518 | AK9: 0.0487 | AL9: 0.0381 | AM9: 0.0472 | AN9: 0.0583 | AO9: 0.0796 | AP9: 0.0385 | AQ9: 0.0454 | AR9: 0.0415 | AS9: 0.0466 | AT9: 0.0384 | AU9: 0.0413 | AV9: 0.079 | AW9: 0.0488 | AX9: 0.0443 | AY9: 0.0381 | AZ9: 0.0355 | BA9: 0.0488
B10: 2003 | C10: 0.0786 | D10: 0.0398 | E10: 0.0404 | F10: 0.0537 | G10: 0.0959 | H10: 0.051 | I10: 0.0799 | J10: 0.0515 | K10: 0.0541 | L10: 0.0402 | M10: 0.122 | N10: 0.0416 | O10: 0.0416 | P10: 0.0486 | Q10: 0.0392 | R10: 0.0461 | S10: 0.0321 | T10: 0.0557 | U10: 0.0893 | V10: 0.0489 | W10: 0.0635 | X10: 0.0496 | Y10: 0.0436 | Z10: 0.0449 | AA10: 0.0448 | AB10: 0.0403 | AC10: 0.0479 | AD10: 0.0396 | AE10: 0.0418 | AF10: 0.0975 | AG10: 0.0799 | AH10: 0.0495 | AI10: 0.073 | AJ10: 0.0714 | AK10: 0.0479 | AL10: 0.0459 | AM10: 0.0463 | AN10: 0.058 | AO10: 0.0888 | AP10: 0.04 | AQ10: 0.0451 | AR10: 0.0429 | AS10: 0.0527 | AT10: 0.0379 | AU10: 0.0423 | AV10: 0.0805 | AW10: 0.0476 | AX10: 0.0471 | AY10: 0.0381 | AZ10: 0.0365 | BA10: 0.0511
B11: 2004 | C11: 0.0833 | D11: 0.0415 | E11: 0.0416 | F11: 0.0535 | G11: 0.0927 | H11: 0.0511 | I11: 0.0789 | J11: 0.0606 | K11: 0.0584 | L11: 0.0443 | M11: 0.1335 | N11: 0.0433 | O11: 0.0382 | P11: 0.0465 | Q11: 0.0413 | R11: 0.0469 | S11: 0.0334 | T11: 0.0582 | U11: 0.0848 | V11: 0.0599 | W11: 0.0656 | X11: 0.0492 | Y11: 0.0463 | Z11: 0.0462 | AA11: 0.0483 | AB11: 0.0415 | AC11: 0.0488 | AD11: 0.0413 | AE11: 0.0428 | AF11: 0.1001 | AG11: 0.0903 | AH11: 0.0522 | AI11: 0.0724 | AJ11: 0.0704 | AK11: 0.0489 | AL11: 0.0476 | AM11: 0.0443 | AN11: 0.0587 | AO11: 0.0937 | AP11: 0.0413 | AQ11: 0.0459 | AR11: 0.0446 | AS11: 0.0587 | AT11: 0.0401 | AU11: 0.0427 | AV11: 0.0796 | AW11: 0.0428 | AX11: 0.0493 | AY11: 0.0383 | AZ11: 0.0391 | BA11: 0.0525
B12: 2005 | C12: 0.0929 | D12: 0.0452 | E12: 0.0474 | F12: 0.0585 | G12: 0.0955 | H12: 0.0574 | I12: 0.094 | J12: 0.0621 | K12: 0.0646 | L12: 0.0528 | M12: 0.1579 | N12: 0.0456 | O12: 0.0391 | P12: 0.0461 | Q12: 0.0442 | R12: 0.0485 | S12: 0.036 | T12: 0.0671 | U12: 0.0922 | V12: 0.0701 | W12: 0.0728 | X12: 0.0532 | Y12: 0.0502 | Z12: 0.0454 | AA12: 0.0537 | AB12: 0.0483 | AC12: 0.0504 | AD12: 0.0432 | AE12: 0.0443 | AF12: 0.1148 | AG12: 0.0976 | AH12: 0.0561 | AI12: 0.0771 | AJ12: 0.0823 | AK12: 0.051 | AL12: 0.0511 | AM12: 0.0483 | AN12: 0.0629 | AO12: 0.1001 | AP12: 0.0455 | AQ12: 0.0495 | AR12: 0.0473 | AS12: 0.0714 | AT12: 0.0424 | AU12: 0.0446 | AV12: 0.0777 | AW12: 0.0427 | AX12: 0.0539 | AY12: 0.0385 | AZ12: 0.0399 | BA12: 0.0573
B13: 2006 | C13: 0.1154 | D13: 0.049 | E13: 0.0524 | F13: 0.0569 | G13: 0.1009 | H13: 0.0588 | I13: 0.1171 | J13: 0.0767 | K13: 0.0771 | L13: 0.0538 | M13: 0.1796 | N13: 0.0492 | O13: 0.0361 | P13: 0.0469 | Q13: 0.0495 | R13: 0.052 | S13: 0.0405 | T13: 0.0687 | U13: 0.1304 | V13: 0.0814 | W13: 0.0883 | X13: 0.0605 | Y13: 0.0529 | Z13: 0.0458 | AA13: 0.0594 | AB13: 0.0512 | AC13: 0.0523 | AD13: 0.05 | AE13: 0.0456 | AF13: 0.1162 | AG13: 0.1042 | AH13: 0.0557 | AI13: 0.0803 | AJ13: 0.0939 | AK13: 0.0561 | AL13: 0.0546 | AM13: 0.0485 | AN13: 0.0663 | AO13: 0.1251 | AP13: 0.0471 | AQ13: 0.0484 | AR13: 0.0517 | AS13: 0.0782 | AT13: 0.0421 | AU13: 0.0469 | AV13: 0.0833 | AW13: 0.0444 | AX13: 0.0585 | AY13: 0.0371 | AZ13: 0.0404 | BA13: 0.0616
B14: 2007 | C14: 0.1263 | D14: 0.0527 | E14: 0.0525 | F14: 0.0605 | G14: 0.0998 | H14: 0.0597 | I14: 0.1292 | J14: 0.0893 | K14: 0.0776 | L14: 0.0553 | M14: 0.1838 | N14: 0.0474 | O14: 0.0387 | P14: 0.0661 | Q14: 0.0489 | R14: 0.0513 | S14: 0.0447 | T14: 0.0677 | U14: 0.1303 | V14: 0.0941 | W14: 0.1411 | X14: 0.0647 | Y14: 0.0569 | Z14: 0.0476 | AA14: 0.0575 | AB14: 0.0516 | AC14: 0.0547 | AD14: 0.0524 | AE14: 0.0478 | AF14: 0.1227 | AG14: 0.1008 | AH14: 0.056 | AI14: 0.0828 | AJ14: 0.0871 | AK14: 0.0576 | AL14: 0.0541 | AM14: 0.0506 | AN14: 0.0687 | AO14: 0.1204 | AP14: 0.0483 | AQ14: 0.0509 | AR14: 0.0519 | AS14: 0.0779 | AT14: 0.0452 | AU14: 0.0507 | AV14: 0.0892 | AW14: 0.0457 | AX14: 0.0616 | AY14: 0.0395 | AZ14: 0.041 | BA14: 0.0639
B15: 2008 | C15: 0.1417 | D15: 0.0611 | E15: 0.0589 | F15: 0.0657 | G15: 0.1009 | H15: 0.0665 | I15: 0.1493 | J15: 0.1049 | K15: 0.0825 | L15: 0.0667 | M15: 0.2605 | N15: 0.0481 | O15: 0.0448 | P15: 0.0734 | Q15: 0.0546 | R15: 0.0569 | S15: 0.0482 | T15: 0.0794 | U15: 0.1414 | V15: 0.1038 | W15: 0.1156 | X15: 0.0673 | Y15: 0.0587 | Z15: 0.0492 | AA15: 0.0656 | AB15: 0.0591 | AC15: 0.0554 | AD15: 0.0559 | AE15: 0.0516 | AF15: 0.1313 | AG15: 0.1254 | AH15: 0.0638 | AI15: 0.0798 | AJ15: 0.0939 | AK15: 0.062 | AL15: 0.059 | AM15: 0.0526 | AN15: 0.0703 | AO15: 0.1423 | AP15: 0.0537 | AQ15: 0.0531 | AR15: 0.0629 | AS15: 0.0879 | AT15: 0.0459 | AU15: 0.0582 | AV15: 0.0919 | AW15: 0.0452 | AX15: 0.0651 | AY15: 0.042 | AZ15: 0.0447 | BA15: 0.0696
B16: 2009 | C16: 0.1315 | D16: 0.0596 | E16: 0.0576 | F16: 0.0665 | G16: 0.1042 | H16: 0.0639 | I16: 0.1499 | J16: 0.0951 | K16: 0.0932 | L16: 0.0612 | M16: 0.1814 | N16: 0.0527 | O16: 0.0517 | P16: 0.0701 | Q16: 0.0581 | R16: 0.061 | S16: 0.0492 | T16: 0.0525 | U16: 0.1407 | V16: 0.0996 | W16: 0.1003 | X16: 0.0698 | Y16: 0.0626 | Z16: 0.0542 | AA16: 0.0661 | AB16: 0.0546 | AC16: 0.0599 | AD16: 0.0525 | AE16: 0.0575 | AF16: 0.1373 | AG16: 0.1189 | AH16: 0.0572 | AI16: 0.0797 | AJ16: 0.0837 | AK16: 0.0672 | AL16: 0.0482 | AM16: 0.054 | AN16: 0.0721 | AO16: 0.1222 | AP16: 0.0579 | AQ16: 0.0565 | AR16: 0.0676 | AS16: 0.0674 | AT16: 0.0481 | AU16: 0.0691 | AV16: 0.0921 | AW16: 0.044 | AX16: 0.0673 | AY16: 0.0524 | AZ16: 0.0483 | BA16: 0.0683
B17: 2010 | C17: =AVERAGEIFS(industrial,year,$B17,state,C$5,Industry_Sector,"Total Electric Industry") -> 0.1414 | D17: 0.0601 | E17: 0.0544 | F17: 0.0663 | G17: 0.098 | H17: 0.069 | I17: 0.1451 | J17: 0.0957 | K17: 0.0885 | L17: 0.0622 | M17: =AVERAGEIFS(industrial,year,$B17,state,M$5,Industry_Sector,"Total Electric Industry") -> 0.2194 | N17: 0.0536 | O17: 0.0515 | P17: 0.0682 | Q17: 0.0587 | R17: 0.0623 | S17: 0.0505 | T17: 0.0584 | U17: 0.1371 | V17: 0.0958 | W17: =AVERAGEIFS(industrial,year,$B17,state,W$5,Industry_Sector,"Total Electric Industry") -> 0.0917 | X17: 0.0708 | Y17: 0.0629 | Z17: 0.055 | AA17: 0.0632 | AB17: 0.0555 | AC17: 0.0617 | AD17: 0.0581 | AE17: 0.06 | AF17: 0.1276 | AG17: =AVERAGEIFS(industrial,year,$B17,state,AG$5,Industry_Sector,"Total Electric Industry") -> 0.1181 | AH17: 0.0601 | AI17: 0.0737 | AJ17: 0.0879 | AK17: 0.064 | AL17: 0.0535 | AM17: 0.054 | AN17: 0.0766 | AO17: 0.1183 | AP17: 0.0574 | AQ17: =AVERAGEIFS(industrial,year,$B17,state,AQ$5,Industry_Sector,"Total Electric Industry") -> 0.0607 | AR17: 0.0658 | AS17: 0.0644 | AT17: 0.0493 | AU17: 0.0666 | AV17: 0.0953 | AW17: 0.0408 | AX17: 0.0685 | AY17: 0.0586 | AZ17: 0.0498 | BA17: 0.0677
B18: 2011 | C18: 0.1571 | D18: 0.0625 | E18: 0.0563 | F18: 0.0655 | G18: 0.1011 | H18: 0.0706 | I18: 0.1324 | J18: 0.0891 | K18: 0.0855 | L18: 0.066 | M18: 0.284 | N18: 0.0521 | O18: 0.051 | P18: 0.0642 | Q18: 0.0617 | R18: 0.0671 | S18: 0.0533 | T18: 0.0569 | U18: 0.1338 | V18: 0.0876 | W18: 0.0888 | X18: 0.0732 | Y18: 0.0647 | Z18: 0.0585 | AA18: 0.0653 | AB18: 0.0527 | AC18: 0.0601 | AD18: 0.0624 | AE18: 0.0643 | AF18: 0.1227 | AG18: 0.1143 | AH18: 0.0606 | AI18: 0.0665 | AJ18: 0.0783 | AK18: 0.0612 | AL18: 0.0546 | AM18: 0.0547 | AN18: 0.0773 | AO18: 0.1127 | AP18: 0.0594 | AQ18: 0.062 | AR18: 0.0723 | AS18: 0.0624 | AT18: 0.051 | AU18: 0.0649 | AV18: 0.0983 | AW18: 0.0409 | AX18: 0.0733 | AY18: 0.0618 | AZ18: 0.0541 | BA18: 0.0682
B19: 2012 | C19: 0.1682 | D19: 0.0622 | E19: 0.0577 | F19: 0.0653 | G19: 0.1049 | H19: 0.0695 | I19: 0.1267 | J19: 0.0836 | K19: 0.0804 | L19: 0.0598 | M19: 0.3082 | N19: 0.053 | O19: 0.0548 | P19: 0.058 | Q19: 0.0634 | R19: 0.0709 | S19: 0.0535 | T19: 0.0476 | U19: 0.1257 | V19: 0.0809 | W19: 0.0798 | X19: 0.0762 | Y19: 0.0654 | Z19: 0.0589 | AA19: 0.0624 | AB19: 0.051 | AC19: 0.0642 | AD19: 0.0655 | AE19: 0.0701 | AF19: 0.1183 | AG19: 0.1052 | AH19: 0.0583 | AI19: 0.0648 | AJ19: 0.067 | AK19: 0.0624 | AL19: 0.0509 | AM19: 0.0559 | AN19: 0.0723 | AO19: 0.1068 | AP19: 0.0602 | AQ19: 0.0657 | AR19: 0.0708 | AS19: 0.0557 | AT19: 0.0562 | AU19: 0.0672 | AV19: 0.0998 | AW19: 0.0413 | AX19: 0.0734 | AY19: 0.0633 | AZ19: 0.0603 | BA19: 0.0667
B20: 2013 | C20: 0.1583 | D20: 0.0595 | E20: 0.0604 | F20: 0.0666 | G20: 0.1144 | H20: 0.0734 | I20: 0.1261 | J20: 0.0843 | K20: 0.0761 | L20: 0.0627 | M20: 0.2987 | N20: 0.0562 | O20: 0.0609 | P20: 0.0594 | Q20: 0.067 | R20: 0.0739 | S20: 0.0566 | T20: 0.0592 | U20: 0.1318 | V20: 0.0836 | W20: 0.0834 | X20: 0.0772 | Y20: 0.0698 | Z20: 0.0629 | AA20: 0.0634 | AB20: 0.0543 | AC20: 0.0645 | AD20: 0.0713 | AE20: 0.0744 | AF20: 0.114 | AG20: 0.108 | AH20: 0.0636 | AI20: 0.0652 | AJ20: 0.0658 | AK20: 0.0622 | AL20: 0.0549 | AM20: 0.058 | AN20: 0.0697 | AO20: 0.1182 | AP20: 0.0601 | AQ20: 0.0697 | AR20: 0.0629 | AS20: 0.0581 | AT20: 0.0587 | AU20: 0.0663 | AV20: 0.1084 | AW20: 0.0423 | AX20: 0.074 | AY20: 0.062 | AZ20: 0.0642 | BA20: 0.0689
B21: 2014 | C21: 0.1566 | D21: 0.0615 | E21: 0.0602 | F21: 0.0646 | G21: 0.1234 | H21: 0.0747 | I21: 0.1292 | J21: 0.0858 | K21: 0.079 | L21: 0.0664 | M21: 0.3022 | N21: 0.0571 | O21: 0.064 | P21: 0.0685 | Q21: 0.0697 | R21: 0.078 | S21: 0.0568 | T21: 0.0605 | U21: 0.1274 | V21: 0.0904 | W21: 0.0895 | X21: 0.0768 | Y21: 0.0672 | Z21: 0.0636 | AA21: 0.066 | AB21: 0.0549 | AC21: 0.065 | AD21: 0.0762 | AE21: 0.0747 | AF21: 0.1193 | AG21: 0.1138 | AH21: 0.0661 | AI21: 0.0712 | AJ21: 0.0658 | AK21: 0.0677 | AL21: 0.0585 | AM21: 0.0597 | AN21: 0.0741 | AO21: 0.1286 | AP21: 0.0629 | AQ21: 0.0699 | AR21: 0.064 | AS21: 0.0616 | AT21: 0.0608 | AU21: 0.0689 | AV21: 0.1023 | AW21: 0.0432 | AX21: 0.0752 | AY21: 0.0587 | AZ21: 0.0661 | BA21: 0.071
B22: 2015 | C22: 0.1453 | D22: 0.0603 | E22: 0.0623 | F22: 0.0626 | G22: 0.1217 | H22: 0.074 | I22: 0.1295 | J22: 0.0828 | K22: 0.0822 | L22: 0.0587 | M22: 0.2306 | N22: 0.059 | O22: 0.066 | P22: 0.0667 | Q22: 0.0686 | R22: 0.0761 | S22: 0.0548 | T22: 0.0541 | U22: 0.1354 | V22: 0.0853 | W22: 0.0905 | X22: 0.0702 | Y22: 0.0702 | Z22: 0.0644 | AA22: 0.0656 | AB22: 0.0532 | AC22: 0.0651 | AD22: 0.0807 | AE22: 0.0759 | AF22: 0.1274 | AG22: 0.1064 | AH22: 0.0633 | AI22: 0.0675 | AJ22: 0.0631 | AK22: 0.0702 | AL22: 0.0535 | AM22: 0.0597 | AN22: 0.072 | AO22: 0.1376 | AP22: 0.0605 | AQ22: 0.0737 | AR22: 0.0617 | AS22: 0.0559 | AT22: 0.0617 | AU22: 0.0695 | AV22: 0.1027 | AW22: 0.0435 | AX22: 0.0758 | AY22: 0.0609 | AZ22: 0.0676 | BA22: 0.0691
B23: 2016 | C23: 0.1522 | D23: 0.0604 | E23: 0.0608 | F23: 0.0607 | G23: 0.1192 | H23: 0.0735 | I23: 0.1281 | J23: 0.0811 | K23: 0.0769 | L23: 0.0584 | M23: 0.2069 | N23: 0.0605 | O23: 0.0655 | P23: 0.0651 | Q23: 0.0697 | R23: 0.0749 | S23: 0.0567 | T23: 0.0508 | U23: 0.1338 | V23: 0.0789 | W23: 0.0896 | X23: 0.0691 | Y23: 0.0737 | Z23: 0.0712 | AA23: 0.0579 | AB23: 0.0506 | AC23: 0.0631 | AD23: 0.0798 | AE23: 0.0769 | AF23: 0.1234 | AG23: 0.1016 | AH23: 0.0584 | AI23: 0.0588 | AJ23: 0.0603 | AK23: 0.0698 | AL23: 0.0502 | AM23: 0.0605 | AN23: 0.0692 | AO23: 0.1348 | AP23: 0.0609 | AQ23: 0.0757 | AR23: 0.0568 | AS23: 0.0533 | AT23: 0.0633 | AU23: 0.0656 | AV23: 0.1023 | AW23: 0.0443 | AX23: 0.075 | AY23: 0.0657 | AZ23: 0.0692 | BA23: 0.0676
B24: 2017 | C24: 0.1634 | D24: 0.0616 | E24: 0.0607 | F24: 0.0645 | G24: 0.1273 | H24: 0.075 | I24: 0.131 | J24: 0.0778 | K24: 0.0783 | L24: 0.0596 | M24: 0.2292 | N24: 0.0621 | O24: 0.0666 | P24: 0.0647 | Q24: 0.0754 | R24: 0.0754 | S24: 0.0572 | T24: 0.0548 | U24: 0.1388 | V24: 0.0837 | W24: 0.092 | X24: 0.0719 | Y24: 0.0737 | Z24: 0.0733 | AA24: 0.0599 | AB24: 0.0525 | AC24: 0.062 | AD24: 0.0763 | AE24: 0.0766 | AF24: 0.1234 | AG24: 0.1012 | AH24: 0.0615 | AI24: 0.0615 | AJ24: 0.0592 | AK24: 0.0692 | AL24: 0.0542 | AM24: 0.0598 | AN24: 0.0677 | AO24: 0.1457 | AP24: 0.0619 | AQ24: 0.0784 | AR24: 0.0583 | AS24: 0.0535 | AT24: 0.0613 | AU24: 0.0651 | AV24: 0.1021 | AW24: 0.046 | AX24: 0.0749 | AY24: 0.0664 | AZ24: 0.0692 | BA24: 0.0688
B25: 2018 | C25: 0.171 | D25: 0.0601 | E25: 0.0564 | F25: 0.0655 | G25: 0.132 | H25: 0.0747 | I25: 0.1377 | J25: 0.0795 | K25: 0.0767 | L25: 0.06 | M25: 0.261 | N25: 0.0645 | O25: 0.0647 | P25: 0.068 | Q25: 0.0738 | R25: 0.076 | S25: 0.0568 | T25: 0.0535 | U25: 0.1489 | V25: 0.0823 | W25: 0.0932 | X25: 0.071 | Y25: 0.0753 | Z25: 0.0722 | AA25: 0.06 | AB25: 0.0519 | AC25: 0.0633 | AD25: 0.0798 | AE25: 0.076 | AF25: 0.1342 | AG25: 0.1007 | AH25: 0.0584 | AI25: 0.061 | AJ25: 0.0602 | AK25: 0.0701 | AL25: 0.0534 | AM25: 0.0586 | AN25: 0.0684 | AO25: 0.1539 | AP25: 0.061 | AQ25: 0.0777 | AR25: 0.0568 | AS25: 0.0539 | AT25: 0.059 | AU25: 0.0686 | AV25: 0.1066 | AW25: 0.0472 | AX25: 0.0733 | AY25: 0.064 | AZ25: 0.0671 | BA25: 0.0692

Sheet REPORTS-->

Sheet State Ind and Comm
B4: 20 YEAR HISTORICAL ELECTRICITY RATE ANALYSIS: INDUSTRIAL AND COMMERCIAL BY STATE
B5: 1999-2018
B6: Montana (MT)
C8: ELECTRICITY RATES ($/kWh)
C9: INDUSTRIAL | E9: COMMERCIAL
B10: Year | C10: Rate | D10: % Change | E10: Rate | F10: % Change
B11: 1999 | C11: =INDEX(Industrial_Elec_State,MATCH('State Ind and Comm'!B11,Industry_Year,0),MATCH(StateofInterest,Industry_State,0)) -> 0.0274 | D11: -- | E11: =INDEX(Commercial_Elec_State,MATCH('State Ind and Comm'!B11,Com_year,0),MATCH(StateofInterest,Com_state,0)) -> 0.0635 | F11: --
B12: 2000 | C12: =INDEX(Industrial_Elec_State,MATCH('State Ind and Comm'!B12,Industry_Year,0),MATCH(StateofInterest,Industry_State,0)) -> 0.0397 | D12: =C12/C11-1 -> 0.4489051095 | E12: =INDEX(Commercial_Elec_State,MATCH('State Ind and Comm'!B12,Com_year,0),MATCH(StateofInterest,Com_state,0)) -> 0.056 | F12: =E12/E11-1 -> -0.1181102362
B13: 2001 | C13: =INDEX(Industrial_Elec_State,MATCH('State Ind and Comm'!B13,Industry_Year,0),MATCH(StateofInterest,Industry_State,0)) -> 0.0659 | D13: 0.6599496222 | E13: =INDEX(Commercial_Elec_State,MATCH('State Ind and Comm'!B13,Com_year,0),MATCH(StateofInterest,Com_state,0)) -> 0.0591 | F13: =E13/E12-1 -> 0.05535714286
B14: 2002 | C14: =INDEX(Industrial_Elec_State,MATCH('State Ind and Comm'!B14,Industry_Year,0),MATCH(StateofInterest,Industry_State,0)) -> 0.0371 | D14: -0.4370257967 | E14: =INDEX(Commercial_Elec_State,MATCH('State Ind and Comm'!B14,Com_year,0),MATCH(StateofInterest,Com_state,0)) -> 0.0628 | F14: 0.06260575296
B15: 2003 | C15: =INDEX(Industrial_Elec_State,MATCH('State Ind and Comm'!B15,Industry_Year,0),MATCH(StateofInterest,Industry_State,0)) -> 0.0403 | D15: 0.08625336927 | E15: =INDEX(Commercial_Elec_State,MATCH('State Ind and Comm'!B15,Com_year,0),MATCH(StateofInterest,Com_state,0)) -> 0.0685 | F15: 0.09076433121
B16: 2004 | C16: =INDEX(Industrial_Elec_State,MATCH('State Ind and Comm'!B16,Industry_Year,0),MATCH(StateofInterest,Industry_State,0)) -> 0.0415 | D16: 0.02977667494 | E16: =INDEX(Commercial_Elec_State,MATCH('State Ind and Comm'!B16,Com_year,0),MATCH(StateofInterest,Com_state,0)) -> 0.0742 | F16: 0.08321167883
B17: 2005 | C17: =INDEX(Industrial_Elec_State,MATCH('State Ind and Comm'!B17,Industry_Year,0),MATCH(StateofInterest,Industry_State,0)) -> 0.0483 | D17: 0.1638554217 | E17: =INDEX(Commercial_Elec_State,MATCH('State Ind and Comm'!B17,Com_year,0),MATCH(StateofInterest,Com_state,0)) -> 0.0743 | F17: 0.001347708895
B18: 2006 | C18: =INDEX(Industrial_Elec_State,MATCH('State Ind and Comm'!B18,Industry_Year,0),MATCH(StateofInterest,Industry_State,0)) -> 0.0512 | D18: 0.06004140787 | E18: =INDEX(Commercial_Elec_State,MATCH('State Ind and Comm'!B18,Com_year,0),MATCH(StateofInterest,Com_state,0)) -> 0.0744 | F18: 0.00134589502
B19: 2007 | C19: =INDEX(Industrial_Elec_State,MATCH('State Ind and Comm'!B19,Industry_Year,0),MATCH(StateofInterest,Industry_State,0)) -> 0.0516 | D19: 0.0078125 | E19: =INDEX(Commercial_Elec_State,MATCH('State Ind and Comm'!B19,Com_year,0),MATCH(StateofInterest,Com_state,0)) -> 0.081 | F19: 0.08870967742
B20: 2008 | C20: =INDEX(Industrial_Elec_State,MATCH('State Ind and Comm'!B20,Industry_Year,0),MATCH(StateofInterest,Industry_State,0)) -> 0.0591 | D20: 0.1453488372 | E20: =INDEX(Commercial_Elec_State,MATCH('State Ind and Comm'!B20,Com_year,0),MATCH(StateofInterest,Com_state,0)) -> 0.0854 | F20: 0.05432098765
B21: 2009 | C21: =INDEX(Industrial_Elec_State,MATCH('State Ind and Comm'!B21,Industry_Year,0),MATCH(StateofInterest,Industry_State,0)) -> 0.0546 | D21: -0.07614213198 | E21: =INDEX(Commercial_Elec_State,MATCH('State Ind and Comm'!B21,Com_year,0),MATCH(StateofInterest,Com_state,0)) -> 0.0832 | F21: -0.02576112412
B22: 2010 | C22: =INDEX(Industrial_Elec_State,MATCH('State Ind and Comm'!B22,Industry_Year,0),MATCH(StateofInterest,Industry_State,0)) -> 0.0555 | D22: 0.01648351648 | E22: =INDEX(Commercial_Elec_State,MATCH('State Ind and Comm'!B22,Com_year,0),MATCH(StateofInterest,Com_state,0)) -> 0.0855 | F22: 0.02764423077
B23: 2011 | C23: =INDEX(Industrial_Elec_State,MATCH('State Ind and Comm'!B23,Industry_Year,0),MATCH(StateofInterest,Industry_State,0)) -> 0.0527 | D23: -0.05045045045 | E23: =INDEX(Commercial_Elec_State,MATCH('State Ind and Comm'!B23,Com_year,0),MATCH(StateofInterest,Com_state,0)) -> 0.0912 | F23: 0.06666666667
B24: 2012 | C24: =INDEX(Industrial_Elec_State,MATCH('State Ind and Comm'!B24,Industry_Year,0),MATCH(StateofInterest,Industry_State,0)) -> 0.051 | D24: -0.03225806452 | E24: =INDEX(Commercial_Elec_State,MATCH('State Ind and Comm'!B24,Com_year,0),MATCH(StateofInterest,Com_state,0)) -> 0.0913 | F24: 0.001096491228
B25: 2013 | C25: =INDEX(Industrial_Elec_State,MATCH('State Ind and Comm'!B25,Industry_Year,0),MATCH(StateofInterest,Industry_State,0)) -> 0.0543 | D25: 0.06470588235 | E25: =INDEX(Commercial_Elec_State,MATCH('State Ind and Comm'!B25,Com_year,0),MATCH(StateofInterest,Com_state,0)) -> 0.0954 | F25: 0.04490690033
B26: 2014 | C26: =INDEX(Industrial_Elec_State,MATCH('State Ind and Comm'!B26,Industry_Year,0),MATCH(StateofInterest,Industry_State,0)) -> 0.0549 | D26: 0.01104972376 | E26: =INDEX(Commercial_Elec_State,MATCH('State Ind and Comm'!B26,Com_year,0),MATCH(StateofInterest,Com_state,0)) -> 0.0964 | F26: 0.01048218029
B27: 2015 | C27: =INDEX(Industrial_Elec_State,MATCH('State Ind and Comm'!B27,Industry_Year,0),MATCH(StateofInterest,Industry_State,0)) -> 0.0532 | D27: -0.03096539162 | E27: =INDEX(Commercial_Elec_State,MATCH('State Ind and Comm'!B27,Com_year,0),MATCH(StateofInterest,Com_state,0)) -> 0.1023 | F27: 0.0612033195
B28: 2016 | C28: =INDEX(Industrial_Elec_State,MATCH('State Ind and Comm'!B28,Industry_Year,0),MATCH(StateofInterest,Industry_State,0)) -> 0.0506 | D28: -0.04887218045 | E28: =INDEX(Commercial_Elec_State,MATCH('State Ind and Comm'!B28,Com_year,0),MATCH(StateofInterest,Com_state,0)) -> 0.1019 | F28: -0.003910068426
B29: 2017 | C29: =INDEX(Industrial_Elec_State,MATCH('State Ind and Comm'!B29,Industry_Year,0),MATCH(StateofInterest,Industry_State,0)) -> 0.0525 | D29: =C29/C28-1 -> 0.03754940711 | E29: =INDEX(Commercial_Elec_State,MATCH('State Ind and Comm'!B29,Com_year,0),MATCH(StateofInterest,Com_state,0)) -> 0.1012 | F29: -0.006869479882 | I29: ELECTRICITY RATE SUMMARY ($/kWh)
B30: 2018 | C30: =INDEX(Industrial_Elec_State,MATCH('State Ind and Comm'!B30,Industry_Year,0),MATCH(StateofInterest,Industry_State,0)) -> 0.0519 | D30: =C30/C29-1 -> -0.01142857143 | E30: =INDEX(Commercial_Elec_State,MATCH('State Ind and Comm'!B30,Com_year,0),MATCH(StateofInterest,Com_state,0)) -> 0.1011 | F30: -0.0009881422925 | J30: 1999 RATE | K30: 2018 RATE | L30: AVERAGE ANNUAL INCREASE | M30: TOTAL INCREASE | N30: PREDICTED 2038 RATE
I32: INDUSTRIAL | J32: =C11 -> 0.0274 | K32: =C30 -> 0.0519 | L32: =(C30/C11)^(1/20)-1 -> 0.03245430564 | M32: =(K32/J32)-1 -> 0.8941605839 | N32: =K32/(J32/K32) -> 0.09830693431
I33: COMMERCIAL | J33: =E11 -> 0.0635 | K33: =E30 -> 0.1011 | L33: =(E30/E11)^(1/20)-1 -> 0.02352598176 | M33: =(K33/J33)-1 -> 0.5921259843 | N33: =K33/(J33/K33) -> 0.160963937
B34: =NOW() -> 2020-06-25T08:25:40.220

Sheet RTO ISO Regions
B3: 20 YEAR HISTORICAL ELECTRICITY RATE ANALYSIS: BY RTO/ISO REGIONS
B4: 1999-2018
B5: New England ISO (NEISO)
C7: ELECTRICITY RATES ($/kWh)
C8: INDUSTRIAL | F8: COMMERCIAL
B9: Year | C9: Average | D9: MIN | E9: MAX | F9: Average | G9: MIN | H9: MAX
B10: 1999 | C10: =(AVERAGEIFS('Industrial by State Data'!$C6:$AZ6,Ind_RTO,"="&StateofInterest)) -> 0.07536666667 | D10: =(_xlfn.MINIFS('Industrial by State Data'!$C6:$AZ6,Ind_RTO,"="&StateofInterest)) -> 0.0642 | E10: =(_xlfn.MAXIFS('Industrial by State Data'!$C6:$AZ6,Ind_RTO,"="&StateofInterest)) -> 0.0919 | F10: =(AVERAGEIFS('Commercial by State Data'!$C6:$AZ6,Com_RTO,"="&StateofInterest)) -> 0.09736666667 | G10: =(_xlfn.MINIFS('Commercial by State Data'!$C6:$AZ6,Com_RTO,"="&StateofInterest)) -> 0.0773 | H10: =(_xlfn.MAXIFS('Commercial by State Data'!$C6:$AZ6,Com_RTO,"="&StateofInterest)) -> 0.1118
B11: 2000 | C11: =(AVERAGEIFS('Industrial by State Data'!$C7:$AZ7,Ind_RTO,"="&StateofInterest)) -> 0.07941666667 | D11: =(_xlfn.MINIFS('Industrial by State Data'!$C7:$AZ7,Ind_RTO,"="&StateofInterest)) -> 0.0689 | E11: =(_xlfn.MAXIFS('Industrial by State Data'!$C7:$AZ7,Ind_RTO,"="&StateofInterest)) -> 0.0917 | F11: =(AVERAGEIFS('Commercial by State Data'!$C7:$AZ7,Com_RTO,"="&StateofInterest)) -> 0.09925 | G11: =(_xlfn.MINIFS('Commercial by State Data'!$C7:$AZ7,Com_RTO,"="&StateofInterest)) -> 0.0913 | H11: =(_xlfn.MAXIFS('Commercial by State Data'!$C7:$AZ7,Com_RTO,"="&StateofInterest)) -> 0.1081
B12: 2001 | C12: =(AVERAGEIFS('Industrial by State Data'!$C8:$AZ8,Ind_RTO,"="&StateofInterest)) -> 0.08416666667 | D12: =(_xlfn.MINIFS('Industrial by State Data'!$C8:$AZ8,Ind_RTO,"="&StateofInterest)) -> 0.0715 | E12: =(_xlfn.MAXIFS('Industrial by State Data'!$C8:$AZ8,Ind_RTO,"="&StateofInterest)) -> 0.0937 | F12: =(AVERAGEIFS('Commercial by State Data'!$C8:$AZ8,Com_RTO,"="&StateofInterest)) -> 0.1098166667 | G12: =(_xlfn.MINIFS('Commercial by State Data'!$C8:$AZ8,Com_RTO,"="&StateofInterest)) -> 0.0926 | H12: =(_xlfn.MAXIFS('Commercial by State Data'!$C8:$AZ8,Com_RTO,"="&StateofInterest)) -> 0.1164
B13: 2002 | C13: =(AVERAGEIFS('Industrial by State Data'!$C9:$AZ9,Ind_RTO,"="&StateofInterest)) -> 0.08003333333 | D13: =(_xlfn.MINIFS('Industrial by State Data'!$C9:$AZ9,Ind_RTO,"="&StateofInterest)) -> 0.0705 | E13: =(_xlfn.MAXIFS('Industrial by State Data'!$C9:$AZ9,Ind_RTO,"="&StateofInterest)) -> 0.0909 | F13: =(AVERAGEIFS('Commercial by State Data'!$C9:$AZ9,Com_RTO,"="&StateofInterest)) -> 0.09971666667 | G13: =(_xlfn.MINIFS('Commercial by State Data'!$C9:$AZ9,Com_RTO,"="&StateofInterest)) -> 0.0865 | H13: =(_xlfn.MAXIFS('Commercial by State Data'!$C9:$AZ9,Com_RTO,"="&StateofInterest)) -> 0.111
B14: 2003 | C14: =(AVERAGEIFS('Industrial by State Data'!$C10:$AZ10,Ind_RTO,"="&StateofInterest)) -> 0.08325 | D14: =(_xlfn.MINIFS('Industrial by State Data'!$C10:$AZ10,Ind_RTO,"="&StateofInterest)) -> 0.0635 | E14: =(_xlfn.MAXIFS('Industrial by State Data'!$C10:$AZ10,Ind_RTO,"="&StateofInterest)) -> 0.0975 | F14: =(AVERAGEIFS('Commercial by State Data'!$C10:$AZ10,Com_RTO,"="&StateofInterest)) -> 0.10405 | G14: =(_xlfn.MINIFS('Commercial by State Data'!$C10:$AZ10,Com_RTO,"="&StateofInterest)) -> 0.0993 | H14: =(_xlfn.MAXIFS('Commercial by State Data'!$C10:$AZ10,Com_RTO,"="&StateofInterest)) -> 0.1129
B15: 2004 | C15: =(AVERAGEIFS('Industrial by State Data'!$C11:$AZ11,Ind_RTO,"="&StateofInterest)) -> 0.08378333333 | D15: =(_xlfn.MINIFS('Industrial by State Data'!$C11:$AZ11,Ind_RTO,"="&StateofInterest)) -> 0.0656 | E15: =(_xlfn.MAXIFS('Industrial by State Data'!$C11:$AZ11,Ind_RTO,"="&StateofInterest)) -> 0.1001 | F15: =(AVERAGEIFS('Commercial by State Data'!$C11:$AZ11,Com_RTO,"="&StateofInterest)) -> 0.1062 | G15: =(_xlfn.MINIFS('Commercial by State Data'!$C11:$AZ11,Com_RTO,"="&StateofInterest)) -> 0.0989 | H15: =(_xlfn.MAXIFS('Commercial by State Data'!$C11:$AZ11,Com_RTO,"="&StateofInterest)) -> 0.1142
B16: 2005 | C16: =(AVERAGEIFS('Industrial by State Data'!$C12:$AZ12,Ind_RTO,"="&StateofInterest)) -> 0.09193333333 | D16: =(_xlfn.MINIFS('Industrial by State Data'!$C12:$AZ12,Ind_RTO,"="&StateofInterest)) -> 0.0728 | E16: =(_xlfn.MAXIFS('Industrial by State Data'!$C12:$AZ12,Ind_RTO,"="&StateofInterest)) -> 0.1148 | F16: =(AVERAGEIFS('Commercial by State Data'!$C12:$AZ12,Com_RTO,"="&StateofInterest)) -> 0.1161333333 | G16: =(_xlfn.MINIFS('Commercial by State Data'!$C12:$AZ12,Com_RTO,"="&StateofInterest)) -> 0.1063 | H16: =(_xlfn.MAXIFS('Commercial by State Data'!$C12:$AZ12,Com_RTO,"="&StateofInterest)) -> 0.1242
B17: 2006 | C17: =(AVERAGEIFS('Industrial by State Data'!$C13:$AZ13,Ind_RTO,"="&StateofInterest)) -> 0.1100666667 | D17: =(_xlfn.MINIFS('Industrial by State Data'!$C13:$AZ13,Ind_RTO,"="&StateofInterest)) -> 0.0833 | E17: =(_xlfn.MAXIFS('Industrial by State Data'!$C13:$AZ13,Ind_RTO,"="&StateofInterest)) -> 0.1304 | F17: =(AVERAGEIFS('Commercial by State Data'!$C13:$AZ13,Com_RTO,"="&StateofInterest)) -> 0.1354 | G17: =(_xlfn.MINIFS('Commercial by State Data'!$C13:$AZ13,Com_RTO,"="&StateofInterest)) -> 0.1167 | H17: =(_xlfn.MAXIFS('Commercial by State Data'!$C13:$AZ13,Com_RTO,"="&StateofInterest)) -> 0.1554
B18: 2007 | C18: =(AVERAGEIFS('Industrial by State Data'!$C14:$AZ14,Ind_RTO,"="&StateofInterest)) -> 0.12215 | D18: =(_xlfn.MINIFS('Industrial by State Data'!$C14:$AZ14,Ind_RTO,"="&StateofInterest)) -> 0.0892 | E18: =(_xlfn.MAXIFS('Industrial by State Data'!$C14:$AZ14,Ind_RTO,"="&StateofInterest)) -> 0.1411 | F18: =(AVERAGEIFS('Commercial by State Data'!$C14:$AZ14,Com_RTO,"="&StateofInterest)) -> 0.1373333333 | G18: =(_xlfn.MINIFS('Commercial by State Data'!$C14:$AZ14,Com_RTO,"="&StateofInterest)) -> 0.1229 | H18: =(_xlfn.MAXIFS('Commercial by State Data'!$C14:$AZ14,Com_RTO,"="&StateofInterest)) -> 0.1539
B19: 2008 | C19: =(AVERAGEIFS('Industrial by State Data'!$C15:$AZ15,Ind_RTO,"="&StateofInterest)) -> 0.1286333333 | D19: =(_xlfn.MINIFS('Industrial by State Data'!$C15:$AZ15,Ind_RTO,"="&StateofInterest)) -> 0.0919 | E19: =(_xlfn.MAXIFS('Industrial by State Data'!$C15:$AZ15,Ind_RTO,"="&StateofInterest)) -> 0.1493 | F19: =(AVERAGEIFS('Commercial by State Data'!$C15:$AZ15,Com_RTO,"="&StateofInterest)) -> 0.1472166667 | G19: =(_xlfn.MINIFS('Commercial by State Data'!$C15:$AZ15,Com_RTO,"="&StateofInterest)) -> 0.1249 | H19: =(_xlfn.MAXIFS('Commercial by State Data'!$C15:$AZ15,Com_RTO,"="&StateofInterest)) -> 0.1712
B20: 2009 | C20: =(AVERAGEIFS('Industrial by State Data'!$C16:$AZ16,Ind_RTO,"="&StateofInterest)) -> 0.12375 | D20: =(_xlfn.MINIFS('Industrial by State Data'!$C16:$AZ16,Ind_RTO,"="&StateofInterest)) -> 0.0921 | E20: =(_xlfn.MAXIFS('Industrial by State Data'!$C16:$AZ16,Ind_RTO,"="&StateofInterest)) -> 0.1499 | F20: =(AVERAGEIFS('Commercial by State Data'!$C16:$AZ16,Com_RTO,"="&StateofInterest)) -> 0.1429833333 | G20: =(_xlfn.MINIFS('Commercial by State Data'!$C16:$AZ16,Com_RTO,"="&StateofInterest)) -> 0.126 | H20: =(_xlfn.MAXIFS('Commercial by State Data'!$C16:$AZ16,Com_RTO,"="&StateofInterest)) -> 0.1687
B21: 2010 | C21: =(AVERAGEIFS('Industrial by State Data'!$C17:$AZ17,Ind_RTO,"="&StateofInterest)) -> 0.1191833333 | D21: =(_xlfn.MINIFS('Industrial by State Data'!$C17:$AZ17,Ind_RTO,"="&StateofInterest)) -> 0.0917 | E21: =(_xlfn.MAXIFS('Industrial by State Data'!$C17:$AZ17,Ind_RTO,"="&StateofInterest)) -> 0.1451 | F21: =(AVERAGEIFS('Commercial by State Data'!$C17:$AZ17,Com_RTO,"="&StateofInterest)) -> 0.1404833333 | G21: =(_xlfn.MINIFS('Commercial by State Data'!$C17:$AZ17,Com_RTO,"="&StateofInterest)) -> 0.1252 | H21: =(_xlfn.MAXIFS('Commercial by State Data'!$C17:$AZ17,Com_RTO,"="&StateofInterest)) -> 0.1645
B22: 2011 | C22: =(AVERAGEIFS('Industrial by State Data'!$C18:$AZ18,Ind_RTO,"="&StateofInterest)) -> 0.1147833333 | D22: =(_xlfn.MINIFS('Industrial by State Data'!$C18:$AZ18,Ind_RTO,"="&StateofInterest)) -> 0.0888 | E22: =(_xlfn.MAXIFS('Industrial by State Data'!$C18:$AZ18,Ind_RTO,"="&StateofInterest)) -> 0.1338 | F22: =(AVERAGEIFS('Commercial by State Data'!$C18:$AZ18,Com_RTO,"="&StateofInterest)) -> 0.1376666667 | G22: =(_xlfn.MINIFS('Commercial by State Data'!$C18:$AZ18,Com_RTO,"="&StateofInterest)) -> 0.1229 | H22: =(_xlfn.MAXIFS('Commercial by State Data'!$C18:$AZ18,Com_RTO,"="&StateofInterest)) -> 0.1557
B23: 2012 | C23: =(AVERAGEIFS('Industrial by State Data'!$C19:$AZ19,Ind_RTO,"="&StateofInterest)) -> 0.1095166667 | D23: =(_xlfn.MINIFS('Industrial by State Data'!$C19:$AZ19,Ind_RTO,"="&StateofInterest)) -> 0.0798 | E23: =(_xlfn.MAXIFS('Industrial by State Data'!$C19:$AZ19,Ind_RTO,"="&StateofInterest)) -> 0.1267 | F23: =(AVERAGEIFS('Commercial by State Data'!$C19:$AZ19,Com_RTO,"="&StateofInterest)) -> 0.1326166667 | G23: =(_xlfn.MINIFS('Commercial by State Data'!$C19:$AZ19,Com_RTO,"="&StateofInterest)) -> 0.1153 | H23: =(_xlfn.MAXIFS('Commercial by State Data'!$C19:$AZ19,Com_RTO,"="&StateofInterest)) -> 0.1465
B24: 2013 | C24: =(AVERAGEIFS('Industrial by State Data'!$C20:$AZ20,Ind_RTO,"="&StateofInterest)) -> 0.11365 | D24: =(_xlfn.MINIFS('Industrial by State Data'!$C20:$AZ20,Ind_RTO,"="&StateofInterest)) -> 0.0834 | E24: =(_xlfn.MAXIFS('Industrial by State Data'!$C20:$AZ20,Ind_RTO,"="&StateofInterest)) -> 0.1318 | F24: =(AVERAGEIFS('Commercial by State Data'!$C20:$AZ20,Com_RTO,"="&StateofInterest)) -> 0.1361666667 | G24: =(_xlfn.MINIFS('Commercial by State Data'!$C20:$AZ20,Com_RTO,"="&StateofInterest)) -> 0.1174 | H24: =(_xlfn.MAXIFS('Commercial by State Data'!$C20:$AZ20,Com_RTO,"="&StateofInterest)) -> 0.1466
B25: 2014 | C25: =(AVERAGEIFS('Industrial by State Data'!$C21:$AZ21,Ind_RTO,"="&StateofInterest)) -> 0.11605 | D25: =(_xlfn.MINIFS('Industrial by State Data'!$C21:$AZ21,Ind_RTO,"="&StateofInterest)) -> 0.0895 | E25: =(_xlfn.MAXIFS('Industrial by State Data'!$C21:$AZ21,Ind_RTO,"="&StateofInterest)) -> 0.1292 | F25: =(AVERAGEIFS('Commercial by State Data'!$C21:$AZ21,Com_RTO,"="&StateofInterest)) -> 0.1439833333 | G25: =(_xlfn.MINIFS('Commercial by State Data'!$C21:$AZ21,Com_RTO,"="&StateofInterest)) -> 0.127 | H25: =(_xlfn.MAXIFS('Commercial by State Data'!$C21:$AZ21,Com_RTO,"="&StateofInterest)) -> 0.1555
B26: 2015 | C26: =(AVERAGEIFS('Industrial by State Data'!$C22:$AZ22,Ind_RTO,"="&StateofInterest)) -> 0.1205166667 | D26: =(_xlfn.MINIFS('Industrial by State Data'!$C22:$AZ22,Ind_RTO,"="&StateofInterest)) -> 0.0905 | E26: =(_xlfn.MAXIFS('Industrial by State Data'!$C22:$AZ22,Ind_RTO,"="&StateofInterest)) -> 0.1376 | F26: =(AVERAGEIFS('Commercial by State Data'!$C22:$AZ22,Com_RTO,"="&StateofInterest)) -> 0.1491833333 | G26: =(_xlfn.MINIFS('Commercial by State Data'!$C22:$AZ22,Com_RTO,"="&StateofInterest)) -> 0.1247 | H26: =(_xlfn.MAXIFS('Commercial by State Data'!$C22:$AZ22,Com_RTO,"="&StateofInterest)) -> 0.1597
B27: 2016 | C27: =(AVERAGEIFS('Industrial by State Data'!$C23:$AZ23,Ind_RTO,"="&StateofInterest)) -> 0.1186666667 | D27: =(_xlfn.MINIFS('Industrial by State Data'!$C23:$AZ23,Ind_RTO,"="&StateofInterest)) -> 0.0896 | E27: =(_xlfn.MAXIFS('Industrial by State Data'!$C23:$AZ23,Ind_RTO,"="&StateofInterest)) -> 0.1348 | F27: =(AVERAGEIFS('Commercial by State Data'!$C23:$AZ23,Com_RTO,"="&StateofInterest)) -> 0.1454666667 | G27: =(_xlfn.MINIFS('Commercial by State Data'!$C23:$AZ23,Com_RTO,"="&StateofInterest)) -> 0.1208 | H27: =(_xlfn.MAXIFS('Commercial by State Data'!$C23:$AZ23,Com_RTO,"="&StateofInterest)) -> 0.1575
B28: 2017 | C28: =(AVERAGEIFS('Industrial by State Data'!$C24:$AZ24,Ind_RTO,"="&StateofInterest)) -> 0.1221666667 | D28: =(_xlfn.MINIFS('Industrial by State Data'!$C24:$AZ24,Ind_RTO,"="&StateofInterest)) -> 0.092 | E28: =(_xlfn.MAXIFS('Industrial by State Data'!$C24:$AZ24,Ind_RTO,"="&StateofInterest)) -> 0.1457 | F28: =(AVERAGEIFS('Commercial by State Data'!$C24:$AZ24,Com_RTO,"="&StateofInterest)) -> 0.1479 | G28: =(_xlfn.MINIFS('Commercial by State Data'!$C24:$AZ24,Com_RTO,"="&StateofInterest)) -> 0.1212 | H28: =(_xlfn.MAXIFS('Commercial by State Data'!$C24:$AZ24,Com_RTO,"="&StateofInterest)) -> 0.1606 | J28: ELECTRICITY RATE SUMMARY ($/kWh)
B29: 2018 | C29: =(AVERAGEIFS('Industrial by State Data'!$C25:$AZ25,Ind_RTO,"="&StateofInterest)) -> 0.1290833333 | D29: =(_xlfn.MINIFS('Industrial by State Data'!$C25:$AZ25,Ind_RTO,"="&StateofInterest)) -> 0.0932 | E29: =(_xlfn.MAXIFS('Industrial by State Data'!$C25:$AZ25,Ind_RTO,"="&StateofInterest)) -> 0.1539 | F29: =(AVERAGEIFS('Commercial by State Data'!$C25:$AZ25,Com_RTO,"="&StateofInterest)) -> 0.1567833333 | G29: =(_xlfn.MINIFS('Commercial by State Data'!$C25:$AZ25,Com_RTO,"="&StateofInterest)) -> 0.1251 | H29: =(_xlfn.MAXIFS('Commercial by State Data'!$C25:$AZ25,Com_RTO,"="&StateofInterest)) -> 0.1717 | K29: 1999 AVERAGE RATE | L29: 2018 AVERAGE RATE | M29: AVERAGE ANNUAL INCREASE | N29: TOTAL INCREASE | O29: PREDICTED 2038 RATE
J31: INDUSTRIAL | K31: =C10 -> 0.07536666667 | L31: =C29 -> 0.1290833333 | M31: =(C29/C10)^(1/20)-1 -> 0.02726985305 | N31: =(L31/K31)-1 -> 0.7127377267 | O31: =L31/(K31/L31) -> 0.2210858949
J32: COMMERCIAL | K32: =F10 -> 0.09736666667 | L32: =F29 -> 0.1567833333 | M32: =(F29/F10)^(1/20)-1 -> 0.02410498364 | N32: =(L32/K32)-1 -> 0.6102362205 | O32: =L32/(K32/L32) -> 0.2524582021
B33: =NOW() -> 2020-06-25T08:25:40.220

Sheet Nationwide Commercial
B3: 20 YEAR HISTORICAL ELECTRICITY RATE ANALYSIS: NATIONWIDE COMMERCIAL
B4: 1999-2018
B6: ELECTRICITY RATES ($/kWh)
B7: Year | C7: Commercial | D7: % Change
B8: 1999 | C8: =('Commercial by State Data'!BA6) -> 0.0726 | D8: --
B9: 2000 | C9: =('Commercial by State Data'!BA7) -> 0.0743 | D9: =C9/C8-1 -> 0.02341597796
B10: 2001 | C10: =('Commercial by State Data'!BA8) -> 0.0792 | D10: =C10/C9-1 -> 0.06594885599
B11: 2002 | C11: =('Commercial by State Data'!BA9) -> 0.0789 | D11: -0.003787878788
B12: 2003 | C12: =('Commercial by State Data'!BA10) -> 0.0803 | D12: 0.01774397972
B13: 2004 | C13: =('Commercial by State Data'!BA11) -> 0.0817 | D13: =C13/C12-1 -> 0.01743462017
B14: 2005 | C14: =('Commercial by State Data'!BA12) -> 0.0867 | D14: 0.0611995104
B15: 2006 | C15: =('Commercial by State Data'!BA13) -> 0.0946 | D15: 0.09111880046
B16: 2007 | C16: =('Commercial by State Data'!BA14) -> 0.0965 | D16: 0.0200845666
B17: 2008 | C17: =('Commercial by State Data'!BA15) -> 0.1026 | D17: 0.06321243523
B18: 2009 | C18: =('Commercial by State Data'!BA16) -> 0.1016 | D18: -0.009746588694
B19: 2010 | C19: =('Commercial by State Data'!BA17) -> 0.1019 | D19: 0.002952755906
B20: 2011 | C20: =('Commercial by State Data'!BA18) -> 0.1024 | D20: 0.004906771344
B21: 2012 | C21: =('Commercial by State Data'!BA19) -> 0.1009 | D21: -0.0146484375
B22: 2013 | C22: =('Commercial by State Data'!BA20) -> 0.1026 | D22: 0.01684836472
B23: 2014 | C23: =('Commercial by State Data'!BA21) -> 0.1074 | D23: 0.04678362573
B24: 2015 | C24: =('Commercial by State Data'!BA22) -> 0.1064 | D24: -0.009310986965
B25: 2016 | C25: =('Commercial by State Data'!BA23) -> 0.1043 | D25: -0.01973684211
B26: 2017 | C26: =('Commercial by State Data'!BA24) -> 0.1066 | D26: 0.02205177373
B27: 2018 | C27: =('Commercial by State Data'!BA25) -> 0.1067 | D27: 0.0009380863039
F29: COMMERCIAL ELECTRICITY RATE SUMMARY ($/kWh)
F30: 1999 RATE | G30: 2018 RATE | H30: AVERAGE ANNUAL INCREASE | I30: TOTAL INCREASE | J30: PREDICTED 2038 RATE
F31: =C8 -> 0.0726 | G31: =C27 -> 0.1067 | H31: =(C27/C8)^(1/20)-1 -> 0.01943934236 | I31: =(G31/F31)-1 -> 0.4696969697 | J31: =G31/(F31/G31) -> 0.1568166667
B32: =NOW() -> 2020-06-25T08:25:40.220

Sheet Nationwide Industrial
B3: 20 YEAR HISTORICAL ELECTRICITY RATE ANALYSIS: NATIONWIDE INDUSTRIAL
B4: 1999-2018
B6: ELECTRICITY RATES ($/kWh)
B7: Year | C7: Industrial | D7: % Change
B8: 1999 | C8: =('Industrial by State Data'!BA6) -> 0.0443 | D8: --
B9: 2000 | C9: =('Industrial by State Data'!BA7) -> 0.0464 | D9: =C9/C8-1 -> 0.04740406321
B10: 2001 | C10: =('Industrial by State Data'!BA8) -> 0.0505 | D10: =C10/C9-1 -> 0.08836206897
B11: 2002 | C11: =('Industrial by State Data'!BA9) -> 0.0488 | D11: -0.03366336634
B12: 2003 | C12: =('Industrial by State Data'!BA10) -> 0.0511 | D12: 0.04713114754
B13: 2004 | C13: =('Industrial by State Data'!BA11) -> 0.0525 | D13: =C13/C12-1 -> 0.02739726027
B14: 2005 | C14: =('Industrial by State Data'!BA12) -> 0.0573 | D14: 0.09142857143
B15: 2006 | C15: =('Industrial by State Data'!BA13) -> 0.0616 | D15: 0.07504363002
B16: 2007 | C16: =('Industrial by State Data'!BA14) -> 0.0639 | D16: 0.03733766234
B17: 2008 | C17: =('Industrial by State Data'!BA15) -> 0.0696 | D17: 0.08920187793
B18: 2009 | C18: =('Industrial by State Data'!BA16) -> 0.0683 | D18: -0.01867816092
B19: 2010 | C19: =('Industrial by State Data'!BA17) -> 0.0677 | D19: -0.00878477306
B20: 2011 | C20: =('Industrial by State Data'!BA18) -> 0.0682 | D20: 0.007385524372
B21: 2012 | C21: =('Industrial by State Data'!BA19) -> 0.0667 | D21: -0.0219941349
B22: 2013 | C22: =('Industrial by State Data'!BA20) -> 0.0689 | D22: 0.03298350825
B23: 2014 | C23: =('Industrial by State Data'!BA21) -> 0.071 | D23: 0.03047895501
B24: 2015 | C24: =('Industrial by State Data'!BA22) -> 0.0691 | D24: -0.02676056338
B25: 2016 | C25: =('Industrial by State Data'!BA23) -> 0.0676 | D25: -0.02170767004
B26: 2017 | C26: =('Industrial by State Data'!BA24) -> 0.0688 | D26: 0.01775147929
B27: 2018 | C27: =('Industrial by State Data'!BA25) -> 0.0692 | D27: 0.005813953488
F29: INDUSTRIAL ELECTRICITY RATE SUMMARY ($/kWh)
F30: 1999 RATE | G30: 2018 RATE | H30: AVERAGE ANNUAL INCREASE | I30: TOTAL INCREASE | J30: PREDICTED 2038 RATE
F31: =C8 -> 0.0443 | G31: =C27 -> 0.0692 | H31: =(G31/F31)^(1/20)-1 -> 0.02255133114 | I31: =(G31/F31)-1 -> 0.5620767494 | J31: =G31/(F31/G31) -> 0.1080957111
B32: =NOW() -> 2020-06-25T08:25:40.220

Sheet METHODOLOGIES & SOURCES
B4: ONE ENERGY ELECTRICITY RATE DATA TOOL
B6: INDUSTRIAL AND COMMERCIAL RATE ANALYSIS
B7: 1999-2018
B19: ALL DATA OBTAINED FROM U.S. ENERGY INFORMATION ADMINISTRATION (EIA) WEBSITE
B20: https://www.eia.gov/electricity/data.php#sales
B21: US EIA Report: 1999 - 2018 Average Price by State by Provider (EIA-861), Release Date: October 18, 2019
B23: NOTES:
B24: 1. Rate growth statistics are based on "Total Electric Industry" in each state as defined by United States Energy Information Administration.
B25: 2. Past rates may or may not be a reflection of future rates and trends.
B26: 3. Raw Data was adjusted from cents/kWh to $/kWh in order to improve clarity.
B27: 4. 'Nationwide Commercial' and 'Nationwide Industrial' sheet graphs exclude Alaska (AK) and Hawaii (HI) for increased legibility.
B28: 5. Electricity Rate table values can be found in Raw Data sheets.
B29: 6. The 'Total Increase' values in the Electricity Rate Summaries are calculated by dividing the 2018 rate by the 1999 rate and then caclulating the 20th root of that quotent and subtracting 1.
B30: 7. The 'Average Annual Increase' values in the Electricity Rate Summaries are calculated by dividing the 2018 rate by the 1999 rate and taking the quotient to the 20th root. The product is then subtracted by 1.
B31: 8. The 'Predicted 2038 Rate' values in the Electricity Rate Summaries are calculated by dividing the 2018 rate by the 1999 rate and then multiplying that by the 2018 rate.
C33: = Dropdown Menu available
